Workbook

Sheet TKM Összesítő
C2: Pénztári TKM
C3: Pénztár neve:
C5: Portfólió neve: | D5: 10 éves | E5: 20 éves | F5: 30 éves
C6: ... portfólió | D6: =+Számítás!C6 -> 0.01497174073 | E6: =+Számítás!D6 -> 0.009919682493 | F6: =+Számítás!E6 -> 0.008308943145
C17: Paraméter tábla:
C18: Havi tagdíj: | D18: 25000
C19: Tagdíjból levonás működésre, likviditási tartalékba: | D19: 0.045
C20: Belépési díj: | D20: 4000
C21: Kifizetéskor felszámolt fix díj: | D21: 3000
C22: Kifizetéskor felszámolt vagyonarányos díj: | D22: 0
C23: Éves vagyonarányos költség a portfólióban: | D23: 0.0054

Sheet Számítás
B2: Havi tagdíj | C2: 25000 | H2: Paraméterek
H3: Tagdíjból levonás működésre, likviditásra: | J3: =+'TKM Összesítő'!D19 -> 0.045
H4: Belépési díj: | J4: =+'TKM Összesítő'!D20 -> 4000
H5: Kifizetéskor felszámolt fix díj: | J5: =+'TKM Összesítő'!D21 -> 3000
B6: TKM: | C6: =C11-C10 -> 0.01497174073 | D6: =D11-D10 -> 0.009919682493 | E6: 0.008308943145 | H6: Kifizetéskor felszámolt vagyonarányos díj: | J6: =+'TKM Összesítő'!D22 -> 0
B8: IRR(h) | C8: 0.001847905865 | D8: 0.002715320156 | E8: 0.002900994297 | H8: Éves vagyonarányos költség: | J8: =+'TKM Összesítő'!D23 -> 0.0054 | K8: =+(1+J8)^(1/12)-1 -> 0.0004488900774
B9: IRR(i) | C9: 0.003062339526 | D9: 0.003514157824 | E9: 0.003569236167
B10: 1+h | C10: =+(1+C8)^12 -> 1.022401638 | D10: 1.033074889 | E10: 1.035372779
B11: 1+i | C11: 1.037373379 | D11: 1.042994571 | E11: 1.043681722
B12: Célérték | C12: =+ABS(H139)+ABS(I139) -> 0.0005574831739 | D12: =+ABS(M259)+ABS(N259) -> 9.220093489e-08 | E12: =+ABS(R379)+ABS(S379) -> 0.0001163808629
A13: Év | B13: Hónap | C13: Tagdíj | D13: Tagdíj költséglevonással | E13: 10 éves forward hozam | F13: 10 éves egyenleg költség nélkül | G13: 10 éves egyenleg költséggel | H13: IRR(h) (költségekkel) | I13: IRR(i) (költség nélkül) | J13: 20 éves forward hozam | K13: 20 éves egyenleg költség nélkül | L13: 20 éves egyenleg költséggel | M13: IRR(h) (költségekkel) | N13: IRR(i) (költség nélkül) | O13: 30 éves forward hozam | P13: 30 éves egyenleg költség nélkül | Q13: 30 éves egyenleg költséggel | R13: IRR(h) (költségekkel) | S13: IRR(i) (költség nélkül)
A14: =+ROUNDUP(B14/12,0) -> 1 | B14: 1 | C14: =+$C$2 -> 25000 | D14: =+C14*(1-$J$3)-$J$4 -> 19875 | E14: =+(1+VLOOKUP(A14,hozamok!$A$11:$E$40,3,FALSE))^(1/12) -> 1.000364269 | F14: =+C14*E14 -> 25009.10673 | G14: =+D14*(E14-$K$8) -> 19873.31816 | H14: =+C14 -> 25000 | I14: =+C14 -> 25000 | J14: =+(1+VLOOKUP(A14,hozamok!$A$11:$E$40,4,FALSE))^(1/12) -> 1.000364269 | K14: =+C14*J14 -> 25009.10673 | L14: =+D14*(J14-$K$8) -> 19873.31816 | M14: =+C14 -> 25000 | N14: =+C14 -> 25000 | O14: =+(1+VLOOKUP(A14,hozamok!$A$11:$E$40,5,FALSE))^(1/12) -> 1.000364269 | P14: =+C14*O14 -> 25009.10673 | Q14: =+D14*(O14-$K$8) -> 19873.31816 | R14: =+C14 -> 25000 | S14: =+C14 -> 25000
A15: =+ROUNDUP(B15/12,0) -> 1 | B15: 2 | C15: =+$C$2 -> 25000 | D15: =+C15*(1-$J$3) -> 23875 | E15: =+(1+VLOOKUP(A15,hozamok!$A$11:$E$40,3,FALSE))^(1/12) -> 1.000364269 | F15: =+(F14+C15)*E15 -> 50027.32352 | G15: =+(G14+D15)*(E15-$K$8) -> 43744.61615 | H15: =+H14+C15/((1+$C$8)^(B15-1)) -> 49953.88756 | I15: =+I14+C15/((1+$C$9)^(B15-1)) -> 49923.67524 | J15: =+(1+VLOOKUP(A15,hozamok!$A$11:$E$40,4,FALSE))^(1/12) -> 1.000364269 | K15: =+(K14+C15)*J15 -> 50027.32352 | L15: =+(L14+D15)*(J15-$K$8) -> 43744.61615 | M15: =+M14+C15/((1+$D$8)^(B15-1)) -> 49932.30082 | N15: =+N14+C15/((1+$D$9)^(B15-1)) -> 49912.45371 | O15: =+(1+VLOOKUP(A15,hozamok!$A$11:$E$40,5,FALSE))^(1/12) -> 1.000364269 | P15: =+(P14+C15)*O15 -> 50027.32352 | Q15: =+(Q14+D15)*(O15-$K$8) -> 43744.61615 | R15: =+R14+C15/((1+$E$8)^(B15-1)) -> 49927.68493 | S15: =+S14+C15/((1+$E$9)^(B15-1)) -> 49911.08645
A16: 1 | B16: 3 | C16: 25000 | D16: =+C16*(1-$J$3) -> 23875 | E16: =+(1+VLOOKUP(A16,hozamok!$A$11:$E$40,3,FALSE))^(1/12) -> 1.000364269 | F16: =+(F15+C16)*E16 -> 75054.65367 | G16: =+(G15+D16)*(E16-$K$8) -> 67613.89412 | H16: 74861.74775 | I16: 74771.25875 | J16: =+(1+VLOOKUP(A16,hozamok!$A$11:$E$40,4,FALSE))^(1/12) -> 1.000364269 | K16: =+(K15+C16)*J16 -> 75054.65367 | L16: =+(L15+D16)*(J16-$K$8) -> 67613.89412 | M16: =+M15+C16/((1+$D$8)^(B16-1)) -> 74797.08579 | N16: =+N15+C16/((1+$D$9)^(B16-1)) -> 74737.66769 | O16: =+(1+VLOOKUP(A16,hozamok!$A$11:$E$40,5,FALSE))^(1/12) -> 1.000364269 | P16: =+(P15+C16)*O16 -> 75054.65367 | Q16: =+(Q15+D16)*(O16-$K$8) -> 67613.89412 | R16: =+R15+C16/((1+$E$8)^(B16-1)) -> 74783.26396 | S16: =+S15+C16/((1+$E$9)^(B16-1)) -> 74733.57557
A17: 1 | B17: 4 | C17: 25000 | D17: 23875 | E17: =+(1+VLOOKUP(A17,hozamok!$A$11:$E$40,3,FALSE))^(1/12) -> 1.000364269 | F17: =+(F16+C17)*E17 -> 100091.1005 | G17: 91481.15226 | H17: 99723.66545 | I17: 99542.98283 | J17: =+(1+VLOOKUP(A17,hozamok!$A$11:$E$40,4,FALSE))^(1/12) -> 1.000364269 | K17: 100091.1005 | L17: 91481.15226 | M17: 99594.53774 | N17: 99475.94746 | O17: =+(1+VLOOKUP(A17,hozamok!$A$11:$E$40,5,FALSE))^(1/12) -> 1.000364269 | P17: 100091.1005 | Q17: 91481.15226 | R17: 99566.94568 | S17: 99467.78247
A18: 1 | B18: 5 | C18: 25000 | D18: 23875 | E18: =+(1+VLOOKUP(A18,hozamok!$A$11:$E$40,3,FALSE))^(1/12) -> 1.000364269 | F18: 125136.6674 | G18: 115346.3907 | H18: 124539.7254 | I18: 124239.0791 | J18: =+(1+VLOOKUP(A18,hozamok!$A$11:$E$40,4,FALSE))^(1/12) -> 1.000364269 | K18: 125136.6674 | L18: 115346.3907 | M18: 124324.839 | N18: 124127.5974 | O18: =+(1+VLOOKUP(A18,hozamok!$A$11:$E$40,5,FALSE))^(1/12) -> 1.000364269 | P18: 125136.6674 | Q18: 115346.3907 | R18: 124278.938 | S18: 124114.0211
A19: 1 | B19: 6 | C19: 25000 | D19: 23875 | E19: =+(1+VLOOKUP(A19,hozamok!$A$11:$E$40,3,FALSE))^(1/12) -> 1.000364269 | F19: 150191.3575 | G19: 139209.6097 | H19: 149310.0122 | I19: 148859.7784 | J19: =+(1+VLOOKUP(A19,hozamok!$A$11:$E$40,4,FALSE))^(1/12) -> 1.000364269 | K19: 150191.3575 | L19: 139209.6097 | M19: 148988.1714 | N19: 148692.921 | O19: =+(1+VLOOKUP(A19,hozamok!$A$11:$E$40,5,FALSE))^(1/12) -> 1.000364269 | P19: 150191.3575 | Q19: 139209.6097 | R19: 148919.4484 | S19: 148672.6044
A20: 1 | B20: 7 | C20: 25000 | D20: 23875 | E20: =+(1+VLOOKUP(A20,hozamok!$A$11:$E$40,3,FALSE))^(1/12) -> 1.000364269 | F20: 175255.1744 | G20: 163070.8094 | H20: 174034.6103 | I20: 173405.3109 | J20: =+(1+VLOOKUP(A20,hozamok!$A$11:$E$40,4,FALSE))^(1/12) -> 1.000364269 | K20: 175255.1744 | L20: 163070.8094 | M20: 173584.7163 | N20: 173172.2204 | O20: =+(1+VLOOKUP(A20,hozamok!$A$11:$E$40,5,FALSE))^(1/12) -> 1.000364269 | P20: 175255.1744 | Q20: 163070.8094 | R20: 173488.6836 | S20: 173143.844
A21: 1 | B21: 8 | C21: 25000 | D21: 23875 | E21: =+(1+VLOOKUP(A21,hozamok!$A$11:$E$40,3,FALSE))^(1/12) -> 1.000364269 | F21: 200328.1212 | G21: 186929.9899 | H21: 198713.6039 | I21: 197875.9062 | J21: =+(1+VLOOKUP(A21,hozamok!$A$11:$E$40,4,FALSE))^(1/12) -> 1.000364269 | K21: 200328.1212 | L21: 186929.9899 | M21: 198114.6546 | N21: 197565.797 | O21: =+(1+VLOOKUP(A21,hozamok!$A$11:$E$40,5,FALSE))^(1/12) -> 1.000364269 | P21: 200328.1212 | Q21: 186929.9899 | R21: 197986.8497 | S21: 197528.0507
A22: 1 | B22: 9 | C22: 25000 | D22: 23875 | E22: =+(1+VLOOKUP(A22,hozamok!$A$11:$E$40,3,FALSE))^(1/12) -> 1.000364269 | F22: 225410.2013 | G22: 210787.1514 | H22: 223347.0772 | I22: 222271.793 | J22: =+(1+VLOOKUP(A22,hozamok!$A$11:$E$40,4,FALSE))^(1/12) -> 1.000364269 | K22: 225410.2013 | L22: 210787.1514 | M22: 222578.1667 | N22: 221873.9508 | O22: =+(1+VLOOKUP(A22,hozamok!$A$11:$E$40,5,FALSE))^(1/12) -> 1.000364269 | P22: 225410.2013 | Q22: 210787.1514 | R22: 222414.1524 | S22: 221825.5339
A23: 1 | B23: 10 | C23: 25000 | D23: =+C23*(1-$J$3) -> 23875 | E23: =+(1+VLOOKUP(A23,hozamok!$A$11:$E$40,3,FALSE))^(1/12) -> 1.000364269 | F23: 250501.4181 | G23: 234642.2941 | H23: 247935.1141 | I23: 246593.1994 | J23: =+(1+VLOOKUP(A23,hozamok!$A$11:$E$40,4,FALSE))^(1/12) -> 1.000364269 | K23: 250501.4181 | L23: 234642.2941 | M23: 246975.4323 | N23: 246096.9812 | O23: =+(1+VLOOKUP(A23,hozamok!$A$11:$E$40,5,FALSE))^(1/12) -> 1.000364269 | P23: 250501.4181 | Q23: 234642.2941 | R23: 246770.7966 | S23: 246036.602
A24: 1 | B24: 11 | C24: 25000 | D24: 23875 | E24: =+(1+VLOOKUP(A24,hozamok!$A$11:$E$40,3,FALSE))^(1/12) -> 1.000364269 | F24: 275601.7748 | G24: 258495.4182 | H24: 272477.7984 | I24: 270840.3528 | J24: =+(1+VLOOKUP(A24,hozamok!$A$11:$E$40,4,FALSE))^(1/12) -> 1.000364269 | K24: 275601.7748 | L24: 258495.4182 | M24: 271306.6309 | N24: 270235.186 | O24: =+(1+VLOOKUP(A24,hozamok!$A$11:$E$40,5,FALSE))^(1/12) -> 1.000364269 | P24: 275601.7748 | Q24: 258495.4182 | R24: 271056.9867 | S24: 270161.5625
A25: 1 | B25: 12 | C25: 25000 | D25: 23875 | E25: =+(1+VLOOKUP(A25,hozamok!$A$11:$E$40,3,FALSE))^(1/12) -> 1.000364269 | F25: 300711.2748 | G25: 282346.5238 | H25: 296975.2138 | I25: 295013.4798 | J25: =+(1+VLOOKUP(A25,hozamok!$A$11:$E$40,4,FALSE))^(1/12) -> 1.000364269 | K25: 300711.2748 | L25: 282346.5238 | M25: 295571.9415 | N25: 294288.8624 | O25: =+(1+VLOOKUP(A25,hozamok!$A$11:$E$40,5,FALSE))^(1/12) -> 1.000364269 | P25: 300711.2748 | Q25: 282346.5238 | R25: 295272.9265 | S25: 294200.7215
A26: 2 | B26: 13 | C26: 25000 | D26: 23875 | E26: =+(1+VLOOKUP(A26,hozamok!$A$11:$E$40,3,FALSE))^(1/12) -> 1.001344586 | F26: 326149.2217 | G26: 306495.8052 | H26: 321427.4438 | I26: 319112.8065 | J26: =+(1+VLOOKUP(A26,hozamok!$A$11:$E$40,4,FALSE))^(1/12) -> 1.001344586 | K26: 326149.2217 | L26: 306495.8052 | M26: 319771.5424 | N26: 318258.3065 | O26: =+(1+VLOOKUP(A26,hozamok!$A$11:$E$40,5,FALSE))^(1/12) -> 1.001344586 | P26: 326149.2217 | Q26: 306495.8052 | R26: 319418.8191 | S26: 318154.3843
A27: 2 | B27: 14 | C27: 25000 | D27: 23875 | E27: =+(1+VLOOKUP(A27,hozamok!$A$11:$E$40,3,FALSE))^(1/12) -> 1.001344586 | F27: 351621.3721 | G27: 330666.7171 | H27: 345834.5717 | I27: 343138.5583 | J27: =+(1+VLOOKUP(A27,hozamok!$A$11:$E$40,4,FALSE))^(1/12) -> 1.001344586 | K27: 351621.3721 | L27: 330666.7171 | M27: 343905.6115 | N27: 342143.8131 | O27: =+(1+VLOOKUP(A27,hozamok!$A$11:$E$40,5,FALSE))^(1/12) -> 1.001344586 | P27: 351621.3721 | Q27: 330666.7171 | R27: 343494.8674 | S27: 342022.8549
A28: 2 | B28: 15 | C28: 25000 | D28: 23875 | E28: =+(1+VLOOKUP(A28,hozamok!$A$11:$E$40,3,FALSE))^(1/12) -> 1.001344586 | F28: 377127.772 | G28: 354859.2787 | H28: 370196.6807 | I28: 367090.9596 | J28: =+(1+VLOOKUP(A28,hozamok!$A$11:$E$40,4,FALSE))^(1/12) -> 1.001344586 | K28: 377127.772 | L28: 354859.2787 | M28: 367974.3264 | N28: 365945.6761 | O28: =+(1+VLOOKUP(A28,hozamok!$A$11:$E$40,5,FALSE))^(1/12) -> 1.001344586 | P28: 377127.772 | Q28: 354859.2787 | R28: 367501.2731 | S28: 365806.4362
A29: 2 | B29: 16 | C29: 25000 | D29: 23875 | E29: =+(1+VLOOKUP(A29,hozamok!$A$11:$E$40,3,FALSE))^(1/12) -> 1.001344586 | F29: 402668.4675 | G29: 379073.5096 | H29: 394513.8539 | I29: 390970.2345 | J29: =+(1+VLOOKUP(A29,hozamok!$A$11:$E$40,4,FALSE))^(1/12) -> 1.001344586 | K29: 402668.4675 | L29: 379073.5096 | M29: 391977.864 | N29: 389664.1886 | O29: =+(1+VLOOKUP(A29,hozamok!$A$11:$E$40,5,FALSE))^(1/12) -> 1.001344586 | P29: 402668.4675 | Q29: 379073.5096 | R29: 391438.2379 | S29: 389505.4303
A30: 2 | B30: 17 | C30: 25000 | D30: 23875 | E30: =+(1+VLOOKUP(A30,hozamok!$A$11:$E$40,3,FALSE))^(1/12) -> 1.001344586 | F30: 428243.5046 | G30: 403309.429 | H30: 418786.1741 | I30: 414776.6062 | J30: =+(1+VLOOKUP(A30,hozamok!$A$11:$E$40,4,FALSE))^(1/12) -> 1.001344586 | K30: 428243.5046 | L30: 403309.429 | M30: 415916.4009 | N30: 413299.6424 | O30: =+(1+VLOOKUP(A30,hozamok!$A$11:$E$40,5,FALSE))^(1/12) -> 1.001344586 | P30: 428243.5046 | Q30: 403309.429 | R30: 415305.9625 | S30: 413120.1378
A31: 2 | B31: 18 | C31: 25000 | D31: 23875 | E31: =+(1+VLOOKUP(A31,hozamok!$A$11:$E$40,3,FALSE))^(1/12) -> 1.001344586 | F31: 453852.9296 | G31: 427567.0565 | H31: 443013.7241 | I31: 438510.2972 | J31: =+(1+VLOOKUP(A31,hozamok!$A$11:$E$40,4,FALSE))^(1/12) -> 1.001344586 | K31: 453852.9296 | L31: 427567.0565 | M31: 439790.1129 | N31: 436852.3283 | O31: =+(1+VLOOKUP(A31,hozamok!$A$11:$E$40,5,FALSE))^(1/12) -> 1.001344586 | P31: 453852.9296 | Q31: 427567.0565 | R31: 439104.6473 | S31: 436650.8587
A32: 2 | B32: 19 | C32: 25000 | D32: 23875 | E32: =+(1+VLOOKUP(A32,hozamok!$A$11:$E$40,3,FALSE))^(1/12) -> 1.001344586 | F32: 479496.7886 | G32: 451846.4114 | H32: 467196.5864 | I32: 462171.5296 | J32: =+(1+VLOOKUP(A32,hozamok!$A$11:$E$40,4,FALSE))^(1/12) -> 1.001344586 | K32: 479496.7886 | L32: 451846.4114 | M32: 463599.1757 | N32: 460322.5362 | O32: =+(1+VLOOKUP(A32,hozamok!$A$11:$E$40,5,FALSE))^(1/12) -> 1.001344586 | P32: 479496.7886 | Q32: 451846.4114 | R32: 462834.4919 | S32: 460097.8916
A33: 2 | B33: 20 | C33: 25000 | D33: 23875 | E33: =+(1+VLOOKUP(A33,hozamok!$A$11:$E$40,3,FALSE))^(1/12) -> 1.001344586 | F33: 505175.1281 | G33: 476147.5132 | H33: 491334.8435 | I33: 485760.5244 | J33: =+(1+VLOOKUP(A33,hozamok!$A$11:$E$40,4,FALSE))^(1/12) -> 1.001344586 | K33: 505175.1281 | L33: 476147.5132 | M33: 487343.7644 | N33: 483710.5549 | O33: =+(1+VLOOKUP(A33,hozamok!$A$11:$E$40,5,FALSE))^(1/12) -> 1.001344586 | P33: 505175.1281 | Q33: 476147.5132 | R33: 486495.6955 | S33: 483461.5341
A34: 2 | B34: 21 | C34: 25000 | D34: 23875 | E34: =+(1+VLOOKUP(A34,hozamok!$A$11:$E$40,3,FALSE))^(1/12) -> 1.001344586 | F34: 530887.9943 | G34: 500470.3815 | H34: 515428.5777 | I34: 509277.5023 | J34: =+(1+VLOOKUP(A34,hozamok!$A$11:$E$40,4,FALSE))^(1/12) -> 1.001344586 | K34: 530887.9943 | L34: 500470.3815 | M34: 511024.0535 | N34: 507016.6723 | O34: =+(1+VLOOKUP(A34,hozamok!$A$11:$E$40,5,FALSE))^(1/12) -> 1.001344586 | P34: 530887.9943 | Q34: 500470.3815 | R34: 510088.4567 | S34: 506742.0828
A35: 2 | B35: 22 | C35: 25000 | D35: 23875 | E35: =+(1+VLOOKUP(A35,hozamok!$A$11:$E$40,3,FALSE))^(1/12) -> 1.001344586 | F35: 556635.4336 | G35: 524815.0356 | H35: 539477.871 | I35: 532722.683 | J35: =+(1+VLOOKUP(A35,hozamok!$A$11:$E$40,4,FALSE))^(1/12) -> 1.001344586 | K35: 556635.4336 | L35: 524815.0356 | M35: 534640.2171 | N35: 530241.1751 | O35: =+(1+VLOOKUP(A35,hozamok!$A$11:$E$40,5,FALSE))^(1/12) -> 1.001344586 | P35: 556635.4336 | Q35: 524815.0356 | R35: 533612.9734 | S35: 529939.8333
A36: 2 | B36: 23 | C36: 25000 | D36: 23875 | E36: =+(1+VLOOKUP(A36,hozamok!$A$11:$E$40,3,FALSE))^(1/12) -> 1.001344586 | F36: 582417.4926 | G36: 549181.4952 | H36: 563482.8055 | I36: 556096.2859 | J36: =+(1+VLOOKUP(A36,hozamok!$A$11:$E$40,4,FALSE))^(1/12) -> 1.001344586 | K36: 582417.4926 | L36: 549181.4952 | M36: 558192.429 | N36: 553384.3491 | O36: =+(1+VLOOKUP(A36,hozamok!$A$11:$E$40,5,FALSE))^(1/12) -> 1.001344586 | P36: 582417.4926 | Q36: 549181.4952 | R36: 557069.4429 | S36: 553055.08
A37: 2 | B37: 24 | C37: 25000 | D37: 23875 | E37: =+(1+VLOOKUP(A37,hozamok!$A$11:$E$40,3,FALSE))^(1/12) -> 1.001344586 | F37: 608234.2178 | G37: 573569.7797 | H37: 587443.4629 | I37: 579398.5294 | J37: =+(1+VLOOKUP(A37,hozamok!$A$11:$E$40,4,FALSE))^(1/12) -> 1.001344586 | K37: 608234.2178 | L37: 573569.7797 | M37: 581680.8622 | N37: 576446.4791 | O37: =+(1+VLOOKUP(A37,hozamok!$A$11:$E$40,5,FALSE))^(1/12) -> 1.001344586 | P37: 608234.2178 | Q37: 573569.7797 | R37: 580458.0623 | S37: 576088.1164
A38: 3 | B38: 25 | C38: 25000 | D38: 23875 | E38: =+(1+VLOOKUP(A38,hozamok!$A$11:$E$40,3,FALSE))^(1/12) -> 1.002240811 | F38: 634653.1763 | G38: 598515.3538 | H38: 611359.925 | I38: 602629.6313 | J38: =+(1+VLOOKUP(A38,hozamok!$A$11:$E$40,4,FALSE))^(1/12) -> 1.002240811 | K38: 634653.1763 | L38: 598515.3538 | M38: 605105.6895 | N38: 599427.849 | O38: =+(1+VLOOKUP(A38,hozamok!$A$11:$E$40,5,FALSE))^(1/12) -> 1.002240811 | P38: 634653.1763 | Q38: 598515.3538 | R38: 603779.0276 | S38: 599039.2348
A39: 3 | B39: 26 | C39: 25000 | D39: 23875 | E39: =+(1+VLOOKUP(A39,hozamok!$A$11:$E$40,3,FALSE))^(1/12) -> 1.002240811 | F39: 661131.3347 | G39: 623505.6283 | H39: 635232.2732 | I39: 625789.8089 | J39: =+(1+VLOOKUP(A39,hozamok!$A$11:$E$40,4,FALSE))^(1/12) -> 1.002240811 | K39: 661131.3347 | L39: 623505.6283 | M39: 628467.0832 | N39: 622328.7415 | O39: =+(1+VLOOKUP(A39,hozamok!$A$11:$E$40,5,FALSE))^(1/12) -> 1.002240811 | P39: 661131.3347 | Q39: 623505.6283 | R39: 627032.5347 | S39: 621908.7265
A40: 3 | B40: 27 | C40: 25000 | D40: 23875 | E40: =+(1+VLOOKUP(A40,hozamok!$A$11:$E$40,3,FALSE))^(1/12) -> 1.002240811 | F40: 687668.8256 | G40: 648540.6835 | H40: 659060.5889 | I40: 648879.2788 | J40: =+(1+VLOOKUP(A40,hozamok!$A$11:$E$40,4,FALSE))^(1/12) -> 1.002240811 | K40: 687668.8256 | L40: 648540.6835 | M40: 651765.215 | N40: 645149.4385 | O40: =+(1+VLOOKUP(A40,hozamok!$A$11:$E$40,5,FALSE))^(1/12) -> 1.002240811 | P40: 687668.8256 | Q40: 648540.6835 | R40: 650218.7785 | S40: 644696.882
A41: 3 | B41: 28 | C41: 25000 | D41: 23875 | E41: =+(1+VLOOKUP(A41,hozamok!$A$11:$E$40,3,FALSE))^(1/12) -> 1.002240811 | F41: 714265.7821 | G41: 673620.5995 | H41: 682844.9533 | I41: 671898.2567 | J41: =+(1+VLOOKUP(A41,hozamok!$A$11:$E$40,4,FALSE))^(1/12) -> 1.002240811 | K41: 714265.7821 | L41: 673620.5995 | M41: 675000.2562 | N41: 667890.2208 | O41: =+(1+VLOOKUP(A41,hozamok!$A$11:$E$40,5,FALSE))^(1/12) -> 1.002240811 | P41: 714265.7821 | Q41: 673620.5995 | R41: 673337.9538 | S41: 667403.9905
A42: 3 | B42: 29 | C42: 25000 | D42: 23875 | E42: =+(1+VLOOKUP(A42,hozamok!$A$11:$E$40,3,FALSE))^(1/12) -> 1.002240811 | F42: 740922.3373 | G42: 698745.4568 | H42: 706585.4476 | I42: 694846.9578 | J42: =+(1+VLOOKUP(A42,hozamok!$A$11:$E$40,4,FALSE))^(1/12) -> 1.002240811 | K42: 740922.3373 | L42: 698745.4568 | M42: 698172.3777 | N42: 690551.3683 | O42: =+(1+VLOOKUP(A42,hozamok!$A$11:$E$40,5,FALSE))^(1/12) -> 1.002240811 | P42: 740922.3373 | Q42: 698745.4568 | R42: 696390.2545 | S42: 690030.3401
A43: 3 | B43: 30 | C43: 25000 | D43: 23875 | E43: =+(1+VLOOKUP(A43,hozamok!$A$11:$E$40,3,FALSE))^(1/12) -> 1.002240811 | F43: 767638.6248 | G43: 723915.3358 | H43: 730282.1526 | I43: 717725.5969 | J43: =+(1+VLOOKUP(A43,hozamok!$A$11:$E$40,4,FALSE))^(1/12) -> 1.002240811 | K43: 767638.6248 | L43: 723915.3358 | M43: 721281.7498 | N43: 713133.1597 | O43: =+(1+VLOOKUP(A43,hozamok!$A$11:$E$40,5,FALSE))^(1/12) -> 1.002240811 | P43: 767638.6248 | Q43: 723915.3358 | R43: 719375.8741 | S43: 712576.2182
A44: 3 | B44: 31 | C44: 25000 | D44: 23875 | E44: =+(1+VLOOKUP(A44,hozamok!$A$11:$E$40,3,FALSE))^(1/12) -> 1.002240811 | F44: 794414.7785 | G44: 749130.3173 | H44: 753935.149 | I44: 740534.3876 | J44: =+(1+VLOOKUP(A44,hozamok!$A$11:$E$40,4,FALSE))^(1/12) -> 1.002240811 | K44: 794414.7785 | L44: 749130.3173 | M44: 744328.5425 | N44: 735635.8731 | O44: =+(1+VLOOKUP(A44,hozamok!$A$11:$E$40,5,FALSE))^(1/12) -> 1.002240811 | P44: 794414.7785 | Q44: 749130.3173 | R44: 742295.0054 | S44: 735041.9109
A45: 3 | B45: 32 | C45: 25000 | D45: 23875 | E45: =+(1+VLOOKUP(A45,hozamok!$A$11:$E$40,3,FALSE))^(1/12) -> 1.002240811 | F45: 821250.9325 | G45: 774390.482 | H45: 777544.5176 | I45: 763273.5434 | J45: =+(1+VLOOKUP(A45,hozamok!$A$11:$E$40,4,FALSE))^(1/12) -> 1.002240811 | K45: 821250.9325 | L45: 774390.482 | M45: 767312.9253 | N45: 758059.7853 | O45: =+(1+VLOOKUP(A45,hozamok!$A$11:$E$40,5,FALSE))^(1/12) -> 1.002240811 | P45: 821250.9325 | Q45: 774390.482 | R45: 765147.8407 | S45: 757427.7035
A46: 3 | B46: 33 | C46: 25000 | D46: 23875 | E46: =+(1+VLOOKUP(A46,hozamok!$A$11:$E$40,3,FALSE))^(1/12) -> 1.002240811 | F46: 848147.2213 | G46: 799695.911 | H46: 801110.3388 | I46: 785943.2767 | J46: =+(1+VLOOKUP(A46,hozamok!$A$11:$E$40,4,FALSE))^(1/12) -> 1.002240811 | K46: 848147.2213 | L46: 799695.911 | M46: 790235.0671 | N46: 780405.1723 | O46: =+(1+VLOOKUP(A46,hozamok!$A$11:$E$40,5,FALSE))^(1/12) -> 1.002240811 | P46: 848147.2213 | Q46: 799695.911 | R46: 787934.5719 | S46: 779733.88
A47: 3 | B47: 34 | C47: 25000 | D47: 23875 | E47: =+(1+VLOOKUP(A47,hozamok!$A$11:$E$40,3,FALSE))^(1/12) -> 1.002240811 | F47: 875103.7796 | G47: 825046.6853 | H47: =+H46+C47/((1+$C$8)^(B47-1)) -> 824632.6928 | I47: =+I46+C47/((1+$C$9)^(B47-1)) -> 808543.7996 | J47: =+(1+VLOOKUP(A47,hozamok!$A$11:$E$40,4,FALSE))^(1/12) -> 1.002240811 | K47: 875103.7796 | L47: 825046.6853 | M47: 813095.1364 | N47: 802672.3091 | O47: =+(1+VLOOKUP(A47,hozamok!$A$11:$E$40,5,FALSE))^(1/12) -> 1.002240811 | P47: 875103.7796 | Q47: 825046.6853 | R47: 810655.3901 | S47: 801960.7237
A48: 3 | B48: 35 | C48: 25000 | D48: 23875 | E48: =+(1+VLOOKUP(A48,hozamok!$A$11:$E$40,3,FALSE))^(1/12) -> 1.002240811 | F48: 902120.7424 | G48: 850442.8862 | H48: 848111.66 | I48: 831075.3232 | J48: =+(1+VLOOKUP(A48,hozamok!$A$11:$E$40,4,FALSE))^(1/12) -> 1.002240811 | K48: 902120.7424 | L48: 850442.8862 | M48: 835893.3015 | N48: 824861.4697 | O48: =+(1+VLOOKUP(A48,hozamok!$A$11:$E$40,5,FALSE))^(1/12) -> 1.002240811 | P48: 902120.7424 | Q48: 850442.8862 | R48: 833310.4859 | S48: 824108.5167
A49: 3 | B49: 36 | C49: 25000 | D49: 23875 | E49: =+(1+VLOOKUP(A49,hozamok!$A$11:$E$40,3,FALSE))^(1/12) -> 1.002240811 | F49: 929198.2452 | G49: 875884.5951 | H49: 871547.3202 | I49: 853538.0584 | J49: =+(1+VLOOKUP(A49,hozamok!$A$11:$E$40,4,FALSE))^(1/12) -> 1.002240811 | K49: 929198.2452 | L49: 875884.5951 | M49: 858629.7299 | N49: 846972.9271 | O49: =+(1+VLOOKUP(A49,hozamok!$A$11:$E$40,5,FALSE))^(1/12) -> 1.002240811 | P49: 929198.2452 | Q49: 875884.5951 | R49: 855900.0496 | S49: 846177.5401
A50: 4 | B50: 37 | C50: 25000 | D50: 23875 | E50: =+(1+VLOOKUP(A50,hozamok!$A$11:$E$40,3,FALSE))^(1/12) -> 1.002638552 | F50: 956715.9465 | G50: 901729.764 | H50: 894939.7534 | I50: 875932.215 | J50: =+(1+VLOOKUP(A50,hozamok!$A$11:$E$40,4,FALSE))^(1/12) -> 1.002638552 | K50: 956715.9465 | L50: 901729.764 | M50: 881304.5888 | N50: 869006.9534 | O50: =+(1+VLOOKUP(A50,hozamok!$A$11:$E$40,5,FALSE))^(1/12) -> 1.002638552 | P50: 956715.9465 | Q50: 901729.764 | R50: 878424.2707 | S50: 868168.0741
A51: 4 | B51: 38 | C51: 25000 | D51: 23875 | E51: =+(1+VLOOKUP(A51,hozamok!$A$11:$E$40,3,FALSE))^(1/12) -> 1.002638552 | F51: 984306.2546 | G51: 927631.5252 | H51: 918289.0394 | I51: 898258.0025 | J51: =+(1+VLOOKUP(A51,hozamok!$A$11:$E$40,4,FALSE))^(1/12) -> 1.002638552 | K51: 984306.2546 | L51: 927631.5252 | M51: 903918.0449 | N51: 890963.8199 | O51: =+(1+VLOOKUP(A51,hozamok!$A$11:$E$40,5,FALSE))^(1/12) -> 1.002638552 | P51: 984306.2546 | Q51: 927631.5252 | R51: 900883.3381 | S51: 890080.3979
A52: 4 | B52: 39 | C52: 25000 | D52: 23875 | E52: =+(1+VLOOKUP(A52,hozamok!$A$11:$E$40,3,FALSE))^(1/12) -> 1.002638552 | F52: 1011969.361 | G52: 953590.0024 | H52: 941595.2576 | I52: 920515.6296 | J52: =+(1+VLOOKUP(A52,hozamok!$A$11:$E$40,4,FALSE))^(1/12) -> 1.002638552 | K52: 1011969.361 | L52: 953590.0024 | M52: 926470.2645 | N52: 912843.7967 | O52: =+(1+VLOOKUP(A52,hozamok!$A$11:$E$40,5,FALSE))^(1/12) -> 1.002638552 | P52: 1011969.361 | Q52: 953590.0024 | R52: 923277.4404 | S52: 911914.7896
A53: 4 | B53: 40 | C53: 25000 | D53: 23875 | E53: =+(1+VLOOKUP(A53,hozamok!$A$11:$E$40,3,FALSE))^(1/12) -> 1.002638552 | F53: 1039705.458 | G53: 979605.3198 | H53: 964858.4876 | I53: 942705.3044 | J53: =+(1+VLOOKUP(A53,hozamok!$A$11:$E$40,4,FALSE))^(1/12) -> 1.002638552 | K53: 1039705.458 | L53: 979605.3198 | M53: 948961.4135 | N53: 934647.153 | O53: =+(1+VLOOKUP(A53,hozamok!$A$11:$E$40,5,FALSE))^(1/12) -> 1.002638552 | P53: 1039705.458 | Q53: 979605.3198 | R53: 945606.7654 | S53: 933671.5263
A54: 4 | B54: 41 | C54: 25000 | D54: 23875 | E54: =+(1+VLOOKUP(A54,hozamok!$A$11:$E$40,3,FALSE))^(1/12) -> 1.002638552 | F54: 1067514.739 | G54: 1005677.602 | H54: 988078.8086 | I54: 964827.2343 | J54: =+(1+VLOOKUP(A54,hozamok!$A$11:$E$40,4,FALSE))^(1/12) -> 1.002638552 | K54: 1067514.739 | L54: 1005677.602 | M54: 971391.6571 | N54: 956374.1572 | O54: =+(1+VLOOKUP(A54,hozamok!$A$11:$E$40,5,FALSE))^(1/12) -> 1.002638552 | P54: 1067514.739 | Q54: 1005677.602 | R54: 967871.5006 | S54: 955350.8843
A55: 4 | B55: 42 | C55: 25000 | D55: 23875 | E55: =+(1+VLOOKUP(A55,hozamok!$A$11:$E$40,3,FALSE))^(1/12) -> 1.002638552 | F55: 1095397.395 | G55: 1031806.974 | H55: 1011256.3 | I55: 986881.6262 | J55: =+(1+VLOOKUP(A55,hozamok!$A$11:$E$40,4,FALSE))^(1/12) -> 1.002638552 | K55: 1095397.395 | L55: 1031806.974 | M55: 993761.1604 | N55: 978025.0767 | O55: =+(1+VLOOKUP(A55,hozamok!$A$11:$E$40,5,FALSE))^(1/12) -> 1.002638552 | P55: 1095397.395 | Q55: 1031806.974 | R55: 990071.8327 | S55: 976953.1387
A56: 4 | B56: 43 | C56: 25000 | D56: 23875 | E56: =+(1+VLOOKUP(A56,hozamok!$A$11:$E$40,3,FALSE))^(1/12) -> 1.002638552 | F56: 1123353.621 | G56: 1057993.56 | H56: 1034391.04 | I56: 1008868.686 | J56: =+(1+VLOOKUP(A56,hozamok!$A$11:$E$40,4,FALSE))^(1/12) -> 1.002638552 | K56: 1123353.621 | L56: 1057993.56 | M56: 1016070.088 | N56: 999600.1779 | O56: =+(1+VLOOKUP(A56,hozamok!$A$11:$E$40,5,FALSE))^(1/12) -> 1.002638552 | P56: 1123353.621 | Q56: 1057993.56 | R56: 1012207.948 | S56: 998478.5638
A57: 4 | B57: 44 | C57: 25000 | D57: 23875 | E57: =+(1+VLOOKUP(A57,hozamok!$A$11:$E$40,3,FALSE))^(1/12) -> 1.002638552 | F57: 1151383.612 | G57: 1084237.486 | H57: 1057483.109 | I57: 1030788.62 | J57: =+(1+VLOOKUP(A57,hozamok!$A$11:$E$40,4,FALSE))^(1/12) -> 1.002638552 | K57: 1151383.612 | L57: 1084237.486 | M57: 1038318.603 | N57: 1021099.726 | O57: =+(1+VLOOKUP(A57,hozamok!$A$11:$E$40,5,FALSE))^(1/12) -> 1.002638552 | P57: 1151383.612 | Q57: 1084237.486 | R57: 1034280.032 | S57: 1019927.433
A58: 4 | B58: 45 | C58: 25000 | D58: 23875 | E58: =+(1+VLOOKUP(A58,hozamok!$A$11:$E$40,3,FALSE))^(1/12) -> 1.002638552 | F58: 1179487.561 | G58: 1110538.877 | H58: 1080532.584 | I58: 1052641.632 | J58: =+(1+VLOOKUP(A58,hozamok!$A$11:$E$40,4,FALSE))^(1/12) -> 1.002638552 | K58: 1179487.561 | L58: 1110538.877 | M58: 1060506.871 | N58: 1042523.986 | O58: =+(1+VLOOKUP(A58,hozamok!$A$11:$E$40,5,FALSE))^(1/12) -> 1.002638552 | P58: 1179487.561 | Q58: 1110538.877 | R58: 1056288.271 | S58: 1041300.018
A59: 4 | B59: 46 | C59: 25000 | D59: 23875 | E59: =+(1+VLOOKUP(A59,hozamok!$A$11:$E$40,3,FALSE))^(1/12) -> 1.002638552 | F59: 1207665.663 | G59: 1136897.859 | H59: 1103539.544 | I59: 1074427.928 | J59: =+(1+VLOOKUP(A59,hozamok!$A$11:$E$40,4,FALSE))^(1/12) -> 1.002638552 | K59: 1207665.663 | L59: 1136897.859 | M59: 1082635.053 | N59: 1063873.222 | O59: =+(1+VLOOKUP(A59,hozamok!$A$11:$E$40,5,FALSE))^(1/12) -> 1.002638552 | P59: 1207665.663 | Q59: 1136897.859 | R59: 1078232.849 | S59: 1062596.591
A60: 4 | B60: 47 | C60: 25000 | D60: 23875 | E60: =+(1+VLOOKUP(A60,hozamok!$A$11:$E$40,3,FALSE))^(1/12) -> 1.002638552 | F60: 1235918.115 | G60: 1163314.559 | H60: 1126504.068 | I60: 1096147.71 | J60: =+(1+VLOOKUP(A60,hozamok!$A$11:$E$40,4,FALSE))^(1/12) -> 1.002638552 | K60: 1235918.115 | L60: 1163314.559 | M60: 1104703.313 | N60: 1085147.696 | O60: =+(1+VLOOKUP(A60,hozamok!$A$11:$E$40,5,FALSE))^(1/12) -> 1.002638552 | P60: 1235918.115 | Q60: 1163314.559 | R60: 1100113.949 | S60: 1083817.421
A61: 4 | B61: 48 | C61: 25000 | D61: 23875 | E61: =+(1+VLOOKUP(A61,hozamok!$A$11:$E$40,3,FALSE))^(1/12) -> 1.002638552 | F61: 1264245.112 | G61: 1189789.102 | H61: 1149426.235 | I61: 1117801.182 | J61: =+(1+VLOOKUP(A61,hozamok!$A$11:$E$40,4,FALSE))^(1/12) -> 1.002638552 | K61: 1264245.112 | L61: 1189789.102 | M61: 1126711.813 | N61: 1106347.669 | O61: =+(1+VLOOKUP(A61,hozamok!$A$11:$E$40,5,FALSE))^(1/12) -> 1.002638552 | P61: 1264245.112 | Q61: 1189789.102 | R61: 1121931.756 | S61: 1104962.779
A62: 5 | B62: 49 | C62: 25000 | D62: 23875 | E62: =+(1+VLOOKUP(A62,hozamok!$A$11:$E$40,3,FALSE))^(1/12) -> 1.002632149 | F62: 1292638.597 | G62: 1216313.845 | H62: 1172306.121 | I62: 1139388.545 | J62: =+(1+VLOOKUP(A62,hozamok!$A$11:$E$40,4,FALSE))^(1/12) -> 1.002632149 | K62: 1292638.597 | L62: 1216313.845 | M62: 1148660.714 | N62: 1127473.404 | O62: =+(1+VLOOKUP(A62,hozamok!$A$11:$E$40,5,FALSE))^(1/12) -> 1.002632149 | P62: 1292638.597 | Q62: 1216313.845 | R62: 1143686.453 | S62: 1126032.933
A63: 5 | B63: 50 | C63: 25000 | D63: 23875 | E63: =+(1+VLOOKUP(A63,hozamok!$A$11:$E$40,3,FALSE))^(1/12) -> 1.002632149 | F63: 1321106.818 | G63: 1242896.498 | H63: 1195143.805 | I63: 1160910.003 | J63: =+(1+VLOOKUP(A63,hozamok!$A$11:$E$40,4,FALSE))^(1/12) -> 1.002632149 | K63: 1321106.818 | L63: 1242896.498 | M63: 1170550.178 | N63: 1148525.159 | O63: =+(1+VLOOKUP(A63,hozamok!$A$11:$E$40,5,FALSE))^(1/12) -> 1.002632149 | P63: 1321106.818 | Q63: 1242896.498 | R63: 1165378.223 | S63: 1147028.149
A64: 5 | B64: 51 | C64: 25000 | D64: 23875 | E64: =+(1+VLOOKUP(A64,hozamok!$A$11:$E$40,3,FALSE))^(1/12) -> 1.002632149 | F64: 1349649.971 | G64: 1269537.187 | H64: 1217939.366 | I64: 1182365.756 | J64: =+(1+VLOOKUP(A64,hozamok!$A$11:$E$40,4,FALSE))^(1/12) -> 1.002632149 | K64: 1349649.971 | L64: 1269537.187 | M64: 1192380.367 | N64: 1169503.194 | O64: =+(1+VLOOKUP(A64,hozamok!$A$11:$E$40,5,FALSE))^(1/12) -> 1.002632149 | P64: 1349649.971 | Q64: 1269537.187 | R64: 1187007.246 | S64: 1167948.695
A65: 5 | B65: 52 | C65: 25000 | D65: 23875 | E65: =+(1+VLOOKUP(A65,hozamok!$A$11:$E$40,3,FALSE))^(1/12) -> 1.002632149 | F65: 1378268.254 | G65: 1296236.04 | H65: 1240692.88 | I65: 1203756.005 | J65: =+(1+VLOOKUP(A65,hozamok!$A$11:$E$40,4,FALSE))^(1/12) -> 1.002632149 | K65: 1378268.254 | L65: 1296236.04 | M65: 1214151.44 | N65: 1190407.767 | O65: =+(1+VLOOKUP(A65,hozamok!$A$11:$E$40,5,FALSE))^(1/12) -> 1.002632149 | P65: 1378268.254 | Q65: 1296236.04 | R65: 1208573.706 | S65: 1188794.837
A66: 5 | B66: 53 | C66: 25000 | D66: 23875 | E66: =+(1+VLOOKUP(A66,hozamok!$A$11:$E$40,3,FALSE))^(1/12) -> 1.002632149 | F66: 1406961.864 | G66: 1322993.184 | H66: 1263404.425 | I66: 1225080.95 | J66: =+(1+VLOOKUP(A66,hozamok!$A$11:$E$40,4,FALSE))^(1/12) -> 1.002632149 | K66: 1406961.864 | L66: 1322993.184 | M66: 1235863.558 | N66: 1211239.136 | O66: =+(1+VLOOKUP(A66,hozamok!$A$11:$E$40,5,FALSE))^(1/12) -> 1.002632149 | P66: 1406961.864 | Q66: 1322993.184 | R66: 1230077.782 | S66: 1209566.838
A67: 5 | B67: 54 | C67: 25000 | D67: 23875 | E67: =+(1+VLOOKUP(A67,hozamok!$A$11:$E$40,3,FALSE))^(1/12) -> 1.002632149 | F67: 1435731.001 | G67: 1349808.745 | H67: 1286074.079 | I67: 1246340.79 | J67: =+(1+VLOOKUP(A67,hozamok!$A$11:$E$40,4,FALSE))^(1/12) -> 1.002632149 | K67: 1435731.001 | L67: 1349808.745 | M67: 1257516.88 | N67: 1231997.556 | O67: =+(1+VLOOKUP(A67,hozamok!$A$11:$E$40,5,FALSE))^(1/12) -> 1.002632149 | P67: 1435731.001 | Q67: 1349808.745 | R67: 1251519.655 | S67: 1230264.963
A68: 5 | B68: 55 | C68: 25000 | D68: 23875 | E68: =+(1+VLOOKUP(A68,hozamok!$A$11:$E$40,3,FALSE))^(1/12) -> 1.002632149 | F68: 1464575.862 | G68: 1376682.852 | H68: 1308701.918 | I68: 1267535.724 | J68: =+(1+VLOOKUP(A68,hozamok!$A$11:$E$40,4,FALSE))^(1/12) -> 1.002632149 | K68: 1464575.862 | L68: 1376682.852 | M68: 1279111.566 | N68: 1252683.283 | O68: =+(1+VLOOKUP(A68,hozamok!$A$11:$E$40,5,FALSE))^(1/12) -> 1.002632149 | P68: 1464575.862 | Q68: 1376682.852 | R68: 1272899.506 | S68: 1250889.474
A69: 5 | B69: 56 | C69: 25000 | D69: 23875 | E69: =+(1+VLOOKUP(A69,hozamok!$A$11:$E$40,3,FALSE))^(1/12) -> 1.002632149 | F69: 1493496.647 | G69: 1403615.632 | H69: 1331288.021 | I69: 1288665.949 | J69: =+(1+VLOOKUP(A69,hozamok!$A$11:$E$40,4,FALSE))^(1/12) -> 1.002632149 | K69: 1493496.647 | L69: 1403615.632 | M69: 1300647.773 | N69: 1273296.572 | O69: =+(1+VLOOKUP(A69,hozamok!$A$11:$E$40,5,FALSE))^(1/12) -> 1.002632149 | P69: 1493496.647 | Q69: 1403615.632 | R69: 1294217.513 | S69: 1271440.633
A70: 5 | B70: 57 | C70: 25000 | D70: 23875 | E70: =+(1+VLOOKUP(A70,hozamok!$A$11:$E$40,3,FALSE))^(1/12) -> 1.002632149 | F70: 1522493.555 | G70: 1430607.213 | H70: 1353832.464 | I70: 1309731.665 | J70: =+(1+VLOOKUP(A70,hozamok!$A$11:$E$40,4,FALSE))^(1/12) -> 1.002632149 | K70: 1522493.555 | L70: 1430607.213 | M70: 1322125.662 | N70: 1293837.676 | O70: =+(1+VLOOKUP(A70,hozamok!$A$11:$E$40,5,FALSE))^(1/12) -> 1.002632149 | P70: 1522493.555 | Q70: 1430607.213 | R70: 1315473.856 | S70: 1291918.7
A71: 5 | B71: 58 | C71: 25000 | D71: 23875 | E71: =+(1+VLOOKUP(A71,hozamok!$A$11:$E$40,3,FALSE))^(1/12) -> 1.002632149 | F71: 1551566.788 | G71: 1457657.724 | H71: 1376335.323 | I71: 1330733.067 | J71: =+(1+VLOOKUP(A71,hozamok!$A$11:$E$40,4,FALSE))^(1/12) -> 1.002632149 | K71: 1551566.788 | L71: 1457657.724 | M71: 1343545.389 | N71: 1314306.848 | O71: =+(1+VLOOKUP(A71,hozamok!$A$11:$E$40,5,FALSE))^(1/12) -> 1.002632149 | P71: 1551566.788 | Q71: 1457657.724 | R71: 1336668.712 | S71: 1312323.937
A72: 5 | B72: 59 | C72: 25000 | D72: 23875 | E72: =+(1+VLOOKUP(A72,hozamok!$A$11:$E$40,3,FALSE))^(1/12) -> 1.002632149 | F72: 1580716.546 | G72: 1484767.293 | H72: 1398796.676 | I72: 1351670.352 | J72: =+(1+VLOOKUP(A72,hozamok!$A$11:$E$40,4,FALSE))^(1/12) -> 1.002632149 | K72: 1580716.546 | L72: 1484767.293 | M72: 1364907.112 | N72: 1334704.34 | O72: =+(1+VLOOKUP(A72,hozamok!$A$11:$E$40,5,FALSE))^(1/12) -> 1.002632149 | P72: 1580716.546 | Q72: 1484767.293 | R72: 1357802.261 | S72: 1332656.602
A73: 5 | B73: 60 | C73: 25000 | D73: 23875 | E73: =+(1+VLOOKUP(A73,hozamok!$A$11:$E$40,3,FALSE))^(1/12) -> 1.002632149 | F73: 1609943.031 | G73: 1511936.049 | H73: 1421216.599 | I73: 1372543.715 | J73: =+(1+VLOOKUP(A73,hozamok!$A$11:$E$40,4,FALSE))^(1/12) -> 1.002632149 | K73: 1609943.031 | L73: 1511936.049 | M73: 1386210.989 | N73: 1355030.404 | O73: =+(1+VLOOKUP(A73,hozamok!$A$11:$E$40,5,FALSE))^(1/12) -> 1.002632149 | P73: 1609943.031 | Q73: 1511936.049 | R73: 1378874.678 | S73: 1352916.953
A74: 6 | B74: 61 | C74: 25000 | D74: 23875 | E74: =+(1+VLOOKUP(A74,hozamok!$A$11:$E$40,3,FALSE))^(1/12) -> 1.002759516 | F74: 1639454.683 | G74: 1539359.734 | H74: 1443595.169 | I74: 1393353.353 | J74: =+(1+VLOOKUP(A74,hozamok!$A$11:$E$40,4,FALSE))^(1/12) -> 1.002759516 | K74: 1639454.683 | L74: 1539359.734 | M74: 1407457.175 | N74: 1375285.288 | O74: =+(1+VLOOKUP(A74,hozamok!$A$11:$E$40,5,FALSE))^(1/12) -> 1.002759516 | P74: 1639454.683 | Q74: 1539359.734 | R74: 1399886.141 | S74: 1373105.247
A75: 6 | B75: 62 | C75: 25000 | D75: 23875 | E75: =+(1+VLOOKUP(A75,hozamok!$A$11:$E$40,3,FALSE))^(1/12) -> 1.002759516 | F75: 1669047.772 | G75: 1566846.785 | H75: 1465932.462 | I75: 1414099.459 | J75: =+(1+VLOOKUP(A75,hozamok!$A$11:$E$40,4,FALSE))^(1/12) -> 1.002759516 | K75: 1669047.772 | L75: 1566846.785 | M75: 1428645.827 | N75: 1395469.243 | O75: =+(1+VLOOKUP(A75,hozamok!$A$11:$E$40,5,FALSE))^(1/12) -> 1.002759516 | P75: 1669047.772 | Q75: 1566846.785 | R75: 1420836.826 | S75: 1393221.74
A76: 6 | B76: 63 | C76: 25000 | D76: 23875 | E76: =+(1+VLOOKUP(A76,hozamok!$A$11:$E$40,3,FALSE))^(1/12) -> 1.002759516 | F76: 1698722.525 | G76: 1594397.348 | H76: 1488228.553 | I76: 1434782.227 | J76: =+(1+VLOOKUP(A76,hozamok!$A$11:$E$40,4,FALSE))^(1/12) -> 1.002759516 | K76: 1698722.525 | L76: 1594397.348 | M76: 1449777.101 | N76: 1415582.516 | O76: =+(1+VLOOKUP(A76,hozamok!$A$11:$E$40,5,FALSE))^(1/12) -> 1.002759516 | P76: 1698722.525 | Q76: 1594397.348 | R76: 1441726.91 | S76: 1413266.689
A77: 6 | B77: 64 | C77: 25000 | D77: 23875 | E77: =+(1+VLOOKUP(A77,hozamok!$A$11:$E$40,3,FALSE))^(1/12) -> 1.002759516 | F77: 1728479.165 | G77: 1622011.571 | H77: 1510483.519 | I77: 1455401.851 | J77: =+(1+VLOOKUP(A77,hozamok!$A$11:$E$40,4,FALSE))^(1/12) -> 1.002759516 | K77: 1728479.165 | L77: 1622011.571 | M77: 1470851.152 | N77: 1435625.356 | O77: =+(1+VLOOKUP(A77,hozamok!$A$11:$E$40,5,FALSE))^(1/12) -> 1.002759516 | P77: 1728479.165 | Q77: 1622011.571 | R77: 1462556.566 | S77: 1433240.346
A78: 6 | B78: 65 | C78: 25000 | D78: 23875 | E78: =+(1+VLOOKUP(A78,hozamok!$A$11:$E$40,3,FALSE))^(1/12) -> 1.002759516 | F78: 1758317.919 | G78: 1649689.599 | H78: 1532697.436 | I78: 1475958.523 | J78: =+(1+VLOOKUP(A78,hozamok!$A$11:$E$40,4,FALSE))^(1/12) -> 1.002759516 | K78: 1758317.919 | L78: 1649689.599 | M78: 1491868.136 | N78: 1455598.009 | O78: =+(1+VLOOKUP(A78,hozamok!$A$11:$E$40,5,FALSE))^(1/12) -> 1.002759516 | P78: 1758317.919 | Q78: 1649689.599 | R78: 1483325.971 | S78: 1453142.967
A79: =+ROUNDUP(B79/12,0) -> 6 | B79: 66 | C79: =+$C$2 -> 25000 | D79: 23875 | E79: =+(1+VLOOKUP(A79,hozamok!$A$11:$E$40,3,FALSE))^(1/12) -> 1.002759516 | F79: 1788239.014 | G79: 1677431.581 | H79: =+H78+C79/((1+$C$8)^(B79-1)) -> 1554870.38 | I79: =+I78+C79/((1+$C$9)^(B79-1)) -> 1496452.436 | J79: =+(1+VLOOKUP(A79,hozamok!$A$11:$E$40,4,FALSE))^(1/12) -> 1.002759516 | K79: 1788239.014 | L79: 1677431.581 | M79: 1512828.206 | N79: 1475500.721 | O79: =+(1+VLOOKUP(A79,hozamok!$A$11:$E$40,5,FALSE))^(1/12) -> 1.002759516 | P79: 1788239.014 | Q79: 1677431.581 | R79: 1504035.298 | S79: 1472974.803
A80: 6 | B80: 67 | C80: 25000 | D80: 23875 | E80: =+(1+VLOOKUP(A80,hozamok!$A$11:$E$40,3,FALSE))^(1/12) -> 1.002759516 | F80: 1818242.677 | G80: =+(G79+D80)*(E80-$K$8) -> 1705237.665 | H80: 1577002.425 | I80: 1516883.781 | J80: =+(1+VLOOKUP(A80,hozamok!$A$11:$E$40,4,FALSE))^(1/12) -> 1.002759516 | K80: =+(K79+C80)*J80 -> 1818242.677 | L80: =+(L79+D80)*(J80-$K$8) -> 1705237.665 | M80: =+M79+C80/((1+$D$8)^(B80-1)) -> 1533731.517 | N80: =+N79+C80/((1+$D$9)^(B80-1)) -> 1495333.736 | O80: =+(1+VLOOKUP(A80,hozamok!$A$11:$E$40,5,FALSE))^(1/12) -> 1.002759516 | P80: =+(P79+C80)*O80 -> 1818242.677 | Q80: =+(Q79+D80)*(O80-$K$8) -> 1705237.665 | R80: =+R79+C80/((1+$E$8)^(B80-1)) -> 1524684.721 | S80: =+S79+C80/((1+$E$9)^(B80-1)) -> 1492736.106
A81: 6 | B81: 68 | C81: 25000 | D81: 23875 | E81: =+(1+VLOOKUP(A81,hozamok!$A$11:$E$40,3,FALSE))^(1/12) -> 1.002759516 | F81: =+(F80+C81)*E81 -> 1848329.135 | G81: 1733107.998 | H81: 1599093.649 | I81: 1537252.75 | J81: =+(1+VLOOKUP(A81,hozamok!$A$11:$E$40,4,FALSE))^(1/12) -> 1.002759516 | K81: 1848329.135 | L81: 1733107.998 | M81: 1554578.222 | N81: 1515097.299 | O81: =+(1+VLOOKUP(A81,hozamok!$A$11:$E$40,5,FALSE))^(1/12) -> 1.002759516 | P81: 1848329.135 | Q81: 1733107.998 | R81: 1545274.414 | S81: 1512427.127
A82: 6 | B82: 69 | C82: 25000 | D82: 23875 | E82: =+(1+VLOOKUP(A82,hozamok!$A$11:$E$40,3,FALSE))^(1/12) -> 1.002759516 | F82: 1878498.617 | G82: 1761042.729 | H82: 1621144.124 | I82: 1557559.532 | J82: =+(1+VLOOKUP(A82,hozamok!$A$11:$E$40,4,FALSE))^(1/12) -> 1.002759516 | K82: 1878498.617 | L82: 1761042.729 | M82: 1575368.475 | N82: 1534791.653 | O82: =+(1+VLOOKUP(A82,hozamok!$A$11:$E$40,5,FALSE))^(1/12) -> 1.002759516 | P82: 1878498.617 | Q82: 1761042.729 | R82: 1565804.549 | S82: 1532048.117
A83: 6 | B83: 70 | C83: 25000 | D83: 23875 | E83: =+(1+VLOOKUP(A83,hozamok!$A$11:$E$40,3,FALSE))^(1/12) -> 1.002759516 | F83: 1908751.352 | G83: 1789042.006 | H83: 1643153.928 | I83: 1577804.318 | J83: =+(1+VLOOKUP(A83,hozamok!$A$11:$E$40,4,FALSE))^(1/12) -> 1.002759516 | K83: 1908751.352 | L83: 1789042.006 | M83: 1596102.429 | N83: 1554417.04 | O83: =+(1+VLOOKUP(A83,hozamok!$A$11:$E$40,5,FALSE))^(1/12) -> 1.002759516 | P83: 1908751.352 | Q83: 1789042.006 | R83: 1586275.298 | S83: 1551599.323
A84: 6 | B84: 71 | C84: 25000 | D84: 23875 | E84: =+(1+VLOOKUP(A84,hozamok!$A$11:$E$40,3,FALSE))^(1/12) -> 1.002759516 | F84: 1939087.571 | G84: 1817105.98 | H84: 1665123.135 | I84: 1597987.297 | J84: =+(1+VLOOKUP(A84,hozamok!$A$11:$E$40,4,FALSE))^(1/12) -> 1.002759516 | K84: 1939087.571 | L84: 1817105.98 | M84: 1616780.236 | N84: 1573973.702 | O84: =+(1+VLOOKUP(A84,hozamok!$A$11:$E$40,5,FALSE))^(1/12) -> 1.002759516 | P84: 1939087.571 | Q84: 1817105.98 | R84: 1606686.833 | S84: 1571080.995
A85: 6 | B85: 72 | C85: 25000 | D85: 23875 | E85: =+(1+VLOOKUP(A85,hozamok!$A$11:$E$40,3,FALSE))^(1/12) -> 1.002759516 | F85: 1969507.502 | G85: 1845234.799 | H85: 1687051.82 | I85: 1618108.658 | J85: =+(1+VLOOKUP(A85,hozamok!$A$11:$E$40,4,FALSE))^(1/12) -> 1.002759516 | K85: 1969507.502 | L85: 1845234.799 | M85: 1637402.049 | N85: 1593461.879 | O85: =+(1+VLOOKUP(A85,hozamok!$A$11:$E$40,5,FALSE))^(1/12) -> 1.002759516 | P85: 1969507.502 | Q85: 1845234.799 | R85: 1627039.326 | S85: 1590493.379
A86: 7 | B86: 73 | C86: 25000 | D86: 23875 | E86: =+(1+VLOOKUP(A86,hozamok!$A$11:$E$40,3,FALSE))^(1/12) -> 1.003291106 | F86: 2001071.638 | G86: 1874422.212 | H86: 1708940.057 | I86: 1638168.588 | J86: =+(1+VLOOKUP(A86,hozamok!$A$11:$E$40,4,FALSE))^(1/12) -> 1.003291106 | K86: 2001071.638 | L86: 1874422.212 | M86: 1657968.018 | N86: 1612881.812 | O86: =+(1+VLOOKUP(A86,hozamok!$A$11:$E$40,5,FALSE))^(1/12) -> 1.003291106 | P86: 2001071.638 | Q86: 1874422.212 | R86: 1647332.948 | S86: 1609836.723
A87: 7 | B87: 74 | C87: 25000 | D87: =+C87*(1-$J$3) -> 23875 | E87: =+(1+VLOOKUP(A87,hozamok!$A$11:$E$40,3,FALSE))^(1/12) -> 1.003291106 | F87: 2032739.654 | G87: 1903692.583 | H87: 1730787.922 | I87: 1658167.275 | J87: =+(1+VLOOKUP(A87,hozamok!$A$11:$E$40,4,FALSE))^(1/12) -> 1.003291106 | K87: 2032739.654 | L87: 1903692.583 | M87: 1678478.295 | N87: 1632233.739 | O87: =+(1+VLOOKUP(A87,hozamok!$A$11:$E$40,5,FALSE))^(1/12) -> 1.003291106 | P87: 2032739.654 | Q87: 1903692.583 | R87: 1667567.868 | S87: 1629111.271
A88: 7 | B88: 75 | C88: 25000 | D88: 23875 | E88: =+(1+VLOOKUP(A88,hozamok!$A$11:$E$40,3,FALSE))^(1/12) -> 1.003291106 | F88: 2064511.893 | G88: 1933046.146 | H88: 1752595.488 | I88: 1678104.907 | J88: =+(1+VLOOKUP(A88,hozamok!$A$11:$E$40,4,FALSE))^(1/12) -> 1.003291106 | K88: 2064511.893 | L88: 1933046.146 | M88: 1698933.03 | N88: 1651517.898 | O88: =+(1+VLOOKUP(A88,hozamok!$A$11:$E$40,5,FALSE))^(1/12) -> 1.003291106 | P88: 2064511.893 | Q88: 1933046.146 | R88: 1687744.256 | S88: 1648317.268
A89: 7 | B89: 76 | C89: 25000 | D89: 23875 | E89: =+(1+VLOOKUP(A89,hozamok!$A$11:$E$40,3,FALSE))^(1/12) -> 1.003291106 | F89: 2096388.698 | G89: 1962483.138 | H89: 1774362.83 | I89: 1697981.669 | J89: =+(1+VLOOKUP(A89,hozamok!$A$11:$E$40,4,FALSE))^(1/12) -> 1.003291106 | K89: 2096388.698 | L89: 1962483.138 | M89: 1719332.376 | N89: 1670734.527 | O89: =+(1+VLOOKUP(A89,hozamok!$A$11:$E$40,5,FALSE))^(1/12) -> 1.003291106 | P89: 2096388.698 | Q89: 1962483.138 | R89: 1707862.282 | S89: 1667454.958
A90: 7 | B90: 77 | C90: 25000 | D90: 23875 | E90: =+(1+VLOOKUP(A90,hozamok!$A$11:$E$40,3,FALSE))^(1/12) -> 1.003291106 | F90: 2128370.413 | G90: 1992003.797 | H90: 1796090.022 | I90: 1717797.747 | J90: =+(1+VLOOKUP(A90,hozamok!$A$11:$E$40,4,FALSE))^(1/12) -> 1.003291106 | K90: 2128370.413 | L90: 1992003.797 | M90: 1739676.48 | N90: 1689883.863 | O90: =+(1+VLOOKUP(A90,hozamok!$A$11:$E$40,5,FALSE))^(1/12) -> 1.003291106 | P90: 2128370.413 | Q90: 1992003.797 | R90: 1727922.115 | S90: 1686524.585
A91: 7 | B91: 78 | C91: 25000 | D91: 23875 | E91: =+(1+VLOOKUP(A91,hozamok!$A$11:$E$40,3,FALSE))^(1/12) -> 1.003291106 | F91: 2160457.383 | G91: 2021608.36 | H91: 1817777.139 | I91: 1737553.327 | J91: =+(1+VLOOKUP(A91,hozamok!$A$11:$E$40,4,FALSE))^(1/12) -> 1.003291106 | K91: 2160457.383 | L91: 2021608.36 | M91: 1759965.493 | N91: 1708966.14 | O91: =+(1+VLOOKUP(A91,hozamok!$A$11:$E$40,5,FALSE))^(1/12) -> 1.003291106 | P91: 2160457.383 | Q91: 2021608.36 | R91: 1747923.923 | S91: 1705526.389
A92: 7 | B92: 79 | C92: 25000 | D92: 23875 | E92: =+(1+VLOOKUP(A92,hozamok!$A$11:$E$40,3,FALSE))^(1/12) -> 1.003291106 | F92: 2192649.955 | G92: 2051297.065 | H92: 1839424.254 | I92: 1757248.594 | J92: =+(1+VLOOKUP(A92,hozamok!$A$11:$E$40,4,FALSE))^(1/12) -> 1.003291106 | K92: 2192649.955 | L92: 2051297.065 | M92: 1780199.565 | N92: 1727981.594 | O92: =+(1+VLOOKUP(A92,hozamok!$A$11:$E$40,5,FALSE))^(1/12) -> 1.003291106 | P92: 2192649.955 | Q92: 2051297.065 | R92: 1767867.873 | S92: 1724460.613
A93: 7 | B93: 80 | C93: 25000 | D93: 23875 | E93: =+(1+VLOOKUP(A93,hozamok!$A$11:$E$40,3,FALSE))^(1/12) -> 1.003291106 | F93: 2224948.476 | G93: 2081070.152 | H93: 1861031.44 | I93: 1776883.731 | J93: =+(1+VLOOKUP(A93,hozamok!$A$11:$E$40,4,FALSE))^(1/12) -> 1.003291106 | K93: 2224948.476 | L93: 2081070.152 | M93: 1800378.843 | N93: 1746930.459 | O93: =+(1+VLOOKUP(A93,hozamok!$A$11:$E$40,5,FALSE))^(1/12) -> 1.003291106 | P93: 2224948.476 | Q93: 2081070.152 | R93: 1787754.133 | S93: 1743327.496
A94: 7 | B94: 81 | C94: 25000 | D94: 23875 | E94: =+(1+VLOOKUP(A94,hozamok!$A$11:$E$40,3,FALSE))^(1/12) -> 1.003291106 | F94: 2257353.295 | G94: 2110927.86 | H94: 1882598.773 | I94: 1796458.923 | J94: =+(1+VLOOKUP(A94,hozamok!$A$11:$E$40,4,FALSE))^(1/12) -> 1.003291106 | K94: 2257353.295 | L94: 2110927.86 | M94: 1820503.476 | N94: 1765812.967 | O94: =+(1+VLOOKUP(A94,hozamok!$A$11:$E$40,5,FALSE))^(1/12) -> 1.003291106 | P94: 2257353.295 | Q94: 2110927.86 | R94: 1807582.87 | S94: 1762127.279
A95: 7 | B95: 82 | C95: 25000 | D95: 23875 | E95: =+(1+VLOOKUP(A95,hozamok!$A$11:$E$40,3,FALSE))^(1/12) -> 1.003291106 | F95: 2289864.762 | G95: 2140870.431 | H95: 1904126.324 | I95: 1815974.351 | J95: =+(1+VLOOKUP(A95,hozamok!$A$11:$E$40,4,FALSE))^(1/12) -> 1.003291106 | K95: 2289864.762 | L95: 2140870.431 | M95: 1840573.612 | N95: 1784629.352 | O95: =+(1+VLOOKUP(A95,hozamok!$A$11:$E$40,5,FALSE))^(1/12) -> 1.003291106 | P95: 2289864.762 | Q95: 2140870.431 | R95: 1827354.251 | S95: 1780860.199
A96: 7 | B96: 83 | C96: 25000 | D96: 23875 | E96: =+(1+VLOOKUP(A96,hozamok!$A$11:$E$40,3,FALSE))^(1/12) -> 1.003291106 | F96: 2322483.227 | G96: 2170898.105 | H96: 1925614.168 | I96: 1835430.199 | J96: =+(1+VLOOKUP(A96,hozamok!$A$11:$E$40,4,FALSE))^(1/12) -> 1.003291106 | K96: 2322483.227 | L96: 2170898.105 | M96: 1860589.399 | N96: 1803379.844 | O96: =+(1+VLOOKUP(A96,hozamok!$A$11:$E$40,5,FALSE))^(1/12) -> 1.003291106 | P96: 2322483.227 | Q96: 2170898.105 | R96: 1847068.441 | S96: 1799526.495
A97: 7 | B97: 84 | C97: 25000 | D97: 23875 | E97: =+(1+VLOOKUP(A97,hozamok!$A$11:$E$40,3,FALSE))^(1/12) -> 1.003291106 | F97: 2355209.043 | G97: 2201011.124 | H97: 1947062.378 | I97: 1854826.649 | J97: =+(1+VLOOKUP(A97,hozamok!$A$11:$E$40,4,FALSE))^(1/12) -> 1.003291106 | K97: 2355209.043 | L97: 2201011.124 | M97: 1880550.984 | N97: 1822064.675 | O97: =+(1+VLOOKUP(A97,hozamok!$A$11:$E$40,5,FALSE))^(1/12) -> 1.003291106 | P97: 2355209.043 | Q97: 2201011.124 | R97: 1866725.605 | S97: 1818126.403
A98: 8 | B98: 85 | C98: 25000 | D98: 23875 | E98: =+(1+VLOOKUP(A98,hozamok!$A$11:$E$40,3,FALSE))^(1/12) -> 1.003293837 | F98: 2388049.064 | G98: 2231215.808 | H98: 1968471.026 | I98: 1874163.881 | J98: =+(1+VLOOKUP(A98,hozamok!$A$11:$E$40,4,FALSE))^(1/12) -> 1.003293837 | K98: 2388049.064 | L98: 2231215.808 | M98: 1900458.514 | N98: 1840684.075 | O98: =+(1+VLOOKUP(A98,hozamok!$A$11:$E$40,5,FALSE))^(1/12) -> 1.003293837 | P98: 2388049.064 | Q98: 2231215.808 | R98: 1886325.909 | S98: 1836660.16
A99: 8 | B99: 86 | C99: 25000 | D99: 23875 | E99: =+(1+VLOOKUP(A99,hozamok!$A$11:$E$40,3,FALSE))^(1/12) -> 1.003293837 | F99: 2420997.256 | G99: 2261506.422 | H99: 1989840.187 | I99: 1893442.077 | J99: =+(1+VLOOKUP(A99,hozamok!$A$11:$E$40,4,FALSE))^(1/12) -> 1.003293837 | K99: 2420997.256 | L99: 2261506.422 | M99: 1920312.135 | N99: 1859238.272 | O99: =+(1+VLOOKUP(A99,hozamok!$A$11:$E$40,5,FALSE))^(1/12) -> 1.003293837 | P99: 2420997.256 | Q99: 2261506.422 | R99: 1905869.518 | S99: 1855128.001
A100: 8 | B100: 87 | C100: 25000 | D100: 23875 | E100: =+(1+VLOOKUP(A100,hozamok!$A$11:$E$40,3,FALSE))^(1/12) -> 1.003293837 | F100: 2454053.973 | G100: 2291883.212 | H100: 2011169.932 | I100: 1912661.417 | J100: =+(1+VLOOKUP(A100,hozamok!$A$11:$E$40,4,FALSE))^(1/12) -> 1.003293837 | K100: 2454053.973 | L100: 2291883.212 | M100: 1940111.993 | N100: 1877727.495 | O100: =+(1+VLOOKUP(A100,hozamok!$A$11:$E$40,5,FALSE))^(1/12) -> 1.003293837 | P100: 2454053.973 | Q100: 2291883.212 | R100: 1925356.594 | S100: 1873530.161
A101: 8 | B101: 88 | C101: 25000 | D101: 23875 | E101: =+(1+VLOOKUP(A101,hozamok!$A$11:$E$40,3,FALSE))^(1/12) -> 1.003293837 | F101: 2487219.574 | G101: 2322346.423 | H101: 2032460.334 | I101: 1931822.08 | J101: =+(1+VLOOKUP(A101,hozamok!$A$11:$E$40,4,FALSE))^(1/12) -> 1.003293837 | K101: 2487219.574 | L101: 2322346.423 | M101: 1959858.233 | N101: 1896151.972 | O101: =+(1+VLOOKUP(A101,hozamok!$A$11:$E$40,5,FALSE))^(1/12) -> 1.003293837 | P101: 2487219.574 | Q101: 2322346.423 | R101: 1944787.302 | S101: 1891866.872
A102: 8 | B102: 89 | C102: 25000 | D102: 23875 | E102: =+(1+VLOOKUP(A102,hozamok!$A$11:$E$40,3,FALSE))^(1/12) -> 1.003293837 | F102: 2520494.417 | G102: 2352896.299 | H102: 2053711.466 | I102: 1950924.246 | J102: =+(1+VLOOKUP(A102,hozamok!$A$11:$E$40,4,FALSE))^(1/12) -> 1.003293837 | K102: 2520494.417 | L102: 2352896.299 | M102: 1979551.001 | N102: 1914511.929 | O102: =+(1+VLOOKUP(A102,hozamok!$A$11:$E$40,5,FALSE))^(1/12) -> 1.003293837 | P102: 2520494.417 | Q102: 2352896.299 | R102: 1964161.805 | S102: 1910138.368
A103: 8 | B103: 90 | C103: 25000 | D103: 23875 | E103: =+(1+VLOOKUP(A103,hozamok!$A$11:$E$40,3,FALSE))^(1/12) -> 1.003293837 | F103: 2553878.862 | G103: 2383533.088 | H103: 2074923.401 | I103: 1969968.094 | J103: =+(1+VLOOKUP(A103,hozamok!$A$11:$E$40,4,FALSE))^(1/12) -> 1.003293837 | K103: 2553878.862 | L103: 2383533.088 | M103: 1999190.442 | N103: 1932807.592 | O103: =+(1+VLOOKUP(A103,hozamok!$A$11:$E$40,5,FALSE))^(1/12) -> 1.003293837 | P103: 2553878.862 | Q103: 2383533.088 | R103: 1983480.265 | S103: 1928344.88
A104: 8 | B104: 91 | C104: 25000 | D104: 23875 | E104: =+(1+VLOOKUP(A104,hozamok!$A$11:$E$40,3,FALSE))^(1/12) -> 1.003293837 | F104: 2587373.27 | G104: 2414257.038 | H104: 2096096.21 | I104: 1988953.8 | J104: =+(1+VLOOKUP(A104,hozamok!$A$11:$E$40,4,FALSE))^(1/12) -> 1.003293837 | K104: 2587373.27 | L104: 2414257.038 | M104: 2018776.7 | N104: 1951039.186 | O104: =+(1+VLOOKUP(A104,hozamok!$A$11:$E$40,5,FALSE))^(1/12) -> 1.003293837 | P104: 2587373.27 | Q104: 2414257.038 | R104: 2002742.844 | S104: 1946486.641
A105: 8 | B105: 92 | C105: 25000 | D105: 23875 | E105: =+(1+VLOOKUP(A105,hozamok!$A$11:$E$40,3,FALSE))^(1/12) -> 1.003293837 | F105: 2620978.003 | G105: 2445068.395 | H105: 2117229.966 | I105: 2007881.544 | J105: =+(1+VLOOKUP(A105,hozamok!$A$11:$E$40,4,FALSE))^(1/12) -> 1.003293837 | K105: 2620978.003 | L105: 2445068.395 | M105: 2038309.919 | N105: 1969206.936 | O105: =+(1+VLOOKUP(A105,hozamok!$A$11:$E$40,5,FALSE))^(1/12) -> 1.003293837 | P105: 2620978.003 | Q105: 2445068.395 | R105: 2021949.704 | S105: 1964563.879
A106: 8 | B106: 93 | C106: 25000 | D106: 23875 | E106: =+(1+VLOOKUP(A106,hozamok!$A$11:$E$40,3,FALSE))^(1/12) -> 1.003293837 | F106: 2654693.424 | G106: 2475967.409 | H106: 2138324.741 | I106: 2026751.501 | J106: =+(1+VLOOKUP(A106,hozamok!$A$11:$E$40,4,FALSE))^(1/12) -> 1.003293837 | K106: 2654693.424 | L106: 2475967.409 | M106: 2057790.243 | N106: 1987311.065 | O106: =+(1+VLOOKUP(A106,hozamok!$A$11:$E$40,5,FALSE))^(1/12) -> 1.003293837 | P106: 2654693.424 | Q106: 2475967.409 | R106: 2041101.007 | S106: 1982576.825
A107: 8 | B107: 94 | C107: 25000 | D107: 23875 | E107: =+(1+VLOOKUP(A107,hozamok!$A$11:$E$40,3,FALSE))^(1/12) -> 1.003293837 | F107: 2688519.899 | G107: 2506954.329 | H107: 2159380.606 | I107: 2045563.848 | J107: =+(1+VLOOKUP(A107,hozamok!$A$11:$E$40,4,FALSE))^(1/12) -> 1.003293837 | K107: 2688519.899 | L107: 2506954.329 | M107: 2077217.814 | N107: 2005351.797 | O107: =+(1+VLOOKUP(A107,hozamok!$A$11:$E$40,5,FALSE))^(1/12) -> 1.003293837 | P107: 2688519.899 | Q107: 2506954.329 | R107: 2060196.912 | S107: 2000525.707
A108: 8 | B108: 95 | C108: 25000 | D108: 23875 | E108: =+(1+VLOOKUP(A108,hozamok!$A$11:$E$40,3,FALSE))^(1/12) -> 1.003293837 | F108: 2722457.792 | G108: 2538029.406 | H108: 2180397.634 | I108: 2064318.762 | J108: =+(1+VLOOKUP(A108,hozamok!$A$11:$E$40,4,FALSE))^(1/12) -> 1.003293837 | K108: 2722457.792 | L108: 2538029.406 | M108: 2096592.777 | N108: 2023329.352 | O108: =+(1+VLOOKUP(A108,hozamok!$A$11:$E$40,5,FALSE))^(1/12) -> 1.003293837 | P108: 2722457.792 | Q108: 2538029.406 | R108: 2079237.581 | S108: 2018410.754
A109: 8 | B109: 96 | C109: 25000 | D109: 23875 | E109: =+(1+VLOOKUP(A109,hozamok!$A$11:$E$40,3,FALSE))^(1/12) -> 1.003293837 | F109: 2756507.472 | G109: 2569192.889 | H109: 2201375.896 | I109: 2083016.417 | J109: =+(1+VLOOKUP(A109,hozamok!$A$11:$E$40,4,FALSE))^(1/12) -> 1.003293837 | K109: 2756507.472 | L109: 2569192.889 | M109: 2115915.272 | N109: 2041243.953 | O109: =+(1+VLOOKUP(A109,hozamok!$A$11:$E$40,5,FALSE))^(1/12) -> 1.003293837 | P109: 2756507.472 | Q109: 2569192.889 | R109: 2098223.172 | S109: 2036232.191
A110: 9 | B110: 97 | C110: 25000 | D110: 23875 | E110: =+(1+VLOOKUP(A110,hozamok!$A$11:$E$40,3,FALSE))^(1/12) -> 1.003372795 | F110: 2790888.925 | G110: 2600649.772 | H110: 2222315.464 | I110: 2101656.988 | J110: =+(1+VLOOKUP(A110,hozamok!$A$11:$E$40,4,FALSE))^(1/12) -> 1.003372795 | K110: 2790888.925 | L110: 2600649.772 | M110: 2135185.443 | N110: 2059095.819 | O110: =+(1+VLOOKUP(A110,hozamok!$A$11:$E$40,5,FALSE))^(1/12) -> 1.003372795 | P110: 2790888.925 | Q110: 2600649.772 | R110: 2117153.846 | S110: 2053990.246
A111: 9 | B111: 98 | C111: 25000 | D111: 23875 | E111: =+(1+VLOOKUP(A111,hozamok!$A$11:$E$40,3,FALSE))^(1/12) -> 1.003372795 | F111: 2825386.34 | G111: 2632198.632 | H111: =+H110+C111/((1+$C$8)^(B111-1)) -> 2243216.409 | I111: =+I110+C111/((1+$C$9)^(B111-1)) -> 2120240.65 | J111: =+(1+VLOOKUP(A111,hozamok!$A$11:$E$40,4,FALSE))^(1/12) -> 1.003372795 | K111: 2825386.34 | L111: 2632198.632 | M111: 2154403.431 | N111: 2076885.17 | O111: =+(1+VLOOKUP(A111,hozamok!$A$11:$E$40,5,FALSE))^(1/12) -> 1.003372795 | P111: 2825386.34 | Q111: 2632198.632 | R111: 2136029.76 | S111: 2071685.143
A112: 9 | B112: 99 | C112: 25000 | D112: 23875 | E112: =+(1+VLOOKUP(A112,hozamok!$A$11:$E$40,3,FALSE))^(1/12) -> 1.003372795 | F112: 2860000.108 | G112: 2663839.738 | H112: 2264078.802 | I112: 2138767.576 | J112: =+(1+VLOOKUP(A112,hozamok!$A$11:$E$40,4,FALSE))^(1/12) -> 1.003372795 | K112: 2860000.108 | L112: 2663839.738 | M112: 2173569.377 | N112: 2094612.226 | O112: =+(1+VLOOKUP(A112,hozamok!$A$11:$E$40,5,FALSE))^(1/12) -> 1.003372795 | P112: 2860000.108 | Q112: 2663839.738 | R112: 2154851.074 | S112: 2089317.108
A113: 9 | B113: 100 | C113: 25000 | D113: 23875 | E113: =+(1+VLOOKUP(A113,hozamok!$A$11:$E$40,3,FALSE))^(1/12) -> 1.003372795 | F113: 2894730.621 | G113: 2695573.359 | H113: 2284902.715 | I113: 2157237.939 | J113: =+(1+VLOOKUP(A113,hozamok!$A$11:$E$40,4,FALSE))^(1/12) -> 1.003372795 | K113: 2894730.621 | L113: 2695573.359 | M113: 2192683.423 | N113: 2112277.205 | O113: =+(1+VLOOKUP(A113,hozamok!$A$11:$E$40,5,FALSE))^(1/12) -> 1.003372795 | P113: 2894730.621 | Q113: 2695573.359 | R113: 2173617.946 | S113: 2106886.364
A114: 9 | B114: 101 | C114: 25000 | D114: 23875 | E114: =+(1+VLOOKUP(A114,hozamok!$A$11:$E$40,3,FALSE))^(1/12) -> 1.003372795 | F114: 2929578.273 | G114: 2727399.766 | H114: 2305688.218 | I114: 2175651.913 | J114: =+(1+VLOOKUP(A114,hozamok!$A$11:$E$40,4,FALSE))^(1/12) -> 1.003372795 | K114: 2929578.273 | L114: 2727399.766 | M114: 2211745.708 | N114: 2129880.323 | O114: =+(1+VLOOKUP(A114,hozamok!$A$11:$E$40,5,FALSE))^(1/12) -> 1.003372795 | P114: 2929578.273 | Q114: 2727399.766 | R114: 2192330.533 | S114: 2124393.134
A115: 9 | B115: 102 | C115: 25000 | D115: 23875 | E115: =+(1+VLOOKUP(A115,hozamok!$A$11:$E$40,3,FALSE))^(1/12) -> 1.003372795 | F115: 2964543.458 | G115: 2759319.231 | H115: 2326435.382 | I115: 2194009.669 | J115: =+(1+VLOOKUP(A115,hozamok!$A$11:$E$40,4,FALSE))^(1/12) -> 1.003372795 | K115: 2964543.458 | L115: 2759319.231 | M115: 2230756.374 | N115: 2147421.798 | O115: =+(1+VLOOKUP(A115,hozamok!$A$11:$E$40,5,FALSE))^(1/12) -> 1.003372795 | P115: 2964543.458 | Q115: 2759319.231 | R115: 2210988.991 | S115: 2141837.64
A116: 9 | B116: 103 | C116: 25000 | D116: 23875 | E116: =+(1+VLOOKUP(A116,hozamok!$A$11:$E$40,3,FALSE))^(1/12) -> 1.003372795 | F116: 2999626.574 | G116: 2791332.025 | H116: 2347144.278 | I116: 2212311.379 | J116: =+(1+VLOOKUP(A116,hozamok!$A$11:$E$40,4,FALSE))^(1/12) -> 1.003372795 | K116: 2999626.574 | L116: 2791332.025 | M116: 2249715.559 | N116: 2164901.845 | O116: =+(1+VLOOKUP(A116,hozamok!$A$11:$E$40,5,FALSE))^(1/12) -> 1.003372795 | P116: 2999626.574 | Q116: 2791332.025 | R116: 2229593.478 | S116: 2159220.105
A117: 9 | B117: 104 | C117: 25000 | D117: 23875 | E117: =+(1+VLOOKUP(A117,hozamok!$A$11:$E$40,3,FALSE))^(1/12) -> 1.003372795 | F117: 3034828.019 | G117: 2823438.422 | H117: 2367814.976 | I117: 2230557.214 | J117: =+(1+VLOOKUP(A117,hozamok!$A$11:$E$40,4,FALSE))^(1/12) -> 1.003372795 | K117: 3034828.019 | L117: 2823438.422 | M117: 2268623.403 | N117: 2182320.68 | O117: =+(1+VLOOKUP(A117,hozamok!$A$11:$E$40,5,FALSE))^(1/12) -> 1.003372795 | P117: 3034828.019 | Q117: 2823438.422 | R117: 2248144.149 | S117: 2176540.748
A118: 9 | B118: 105 | C118: 25000 | D118: 23875 | E118: =+(1+VLOOKUP(A118,hozamok!$A$11:$E$40,3,FALSE))^(1/12) -> 1.003372795 | F118: 3070148.19 | G118: 2855638.695 | H118: 2388447.548 | I118: 2248747.345 | J118: =+(1+VLOOKUP(A118,hozamok!$A$11:$E$40,4,FALSE))^(1/12) -> 1.003372795 | K118: 3070148.19 | L118: 2855638.695 | M118: 2287480.045 | N118: 2199678.516 | O118: =+(1+VLOOKUP(A118,hozamok!$A$11:$E$40,5,FALSE))^(1/12) -> 1.003372795 | P118: 3070148.19 | Q118: 2855638.695 | R118: 2266641.161 | S118: 2193799.789
A119: 9 | B119: 106 | C119: 25000 | D119: 23875 | E119: =+(1+VLOOKUP(A119,hozamok!$A$11:$E$40,3,FALSE))^(1/12) -> 1.003372795 | F119: 3105587.489 | G119: 2887933.118 | H119: 2409042.062 | I119: 2266881.941 | J119: =+(1+VLOOKUP(A119,hozamok!$A$11:$E$40,4,FALSE))^(1/12) -> 1.003372795 | K119: 3105587.489 | L119: 2887933.118 | M119: 2306285.624 | N119: 2216975.568 | O119: =+(1+VLOOKUP(A119,hozamok!$A$11:$E$40,5,FALSE))^(1/12) -> 1.003372795 | P119: 3105587.489 | Q119: 2887933.118 | R119: 2285084.668 | S119: 2210997.448
A120: 9 | B120: 107 | C120: 25000 | D120: 23875 | E120: =+(1+VLOOKUP(A120,hozamok!$A$11:$E$40,3,FALSE))^(1/12) -> 1.003372795 | F120: 3141146.318 | G120: 2920321.967 | H120: 2429598.59 | I120: 2284961.172 | J120: =+(1+VLOOKUP(A120,hozamok!$A$11:$E$40,4,FALSE))^(1/12) -> 1.003372795 | K120: 3141146.318 | L120: 2920321.967 | M120: 2325040.278 | N120: 2234212.049 | O120: =+(1+VLOOKUP(A120,hozamok!$A$11:$E$40,5,FALSE))^(1/12) -> 1.003372795 | P120: 3141146.318 | Q120: 2920321.967 | R120: 2303474.826 | S120: 2228133.942
A121: 9 | B121: 108 | C121: 25000 | D121: 23875 | E121: =+(1+VLOOKUP(A121,hozamok!$A$11:$E$40,3,FALSE))^(1/12) -> 1.003372795 | F121: 3176825.079 | G121: 2952805.518 | H121: 2450117.202 | I121: 2302985.208 | J121: =+(1+VLOOKUP(A121,hozamok!$A$11:$E$40,4,FALSE))^(1/12) -> 1.003372795 | K121: 3176825.079 | L121: 2952805.518 | M121: 2343744.146 | N121: 2251388.169 | O121: =+(1+VLOOKUP(A121,hozamok!$A$11:$E$40,5,FALSE))^(1/12) -> 1.003372795 | P121: 3176825.079 | Q121: 2952805.518 | R121: 2321811.788 | S121: 2245209.49
A122: 10 | B122: 109 | C122: 25000 | D122: 23875 | E122: =+(1+VLOOKUP(A122,hozamok!$A$11:$E$40,3,FALSE))^(1/12) -> 1.003743117 | F122: 3213809.885 | G122: 2986486.379 | H122: 2470597.967 | I122: 2320954.217 | J122: =+(1+VLOOKUP(A122,hozamok!$A$11:$E$40,4,FALSE))^(1/12) -> 1.003743117 | K122: 3213809.885 | L122: 2986486.379 | M122: 2362397.364 | N122: 2268504.142 | O122: =+(1+VLOOKUP(A122,hozamok!$A$11:$E$40,5,FALSE))^(1/12) -> 1.003743117 | P122: 3213809.885 | Q122: 2986486.379 | R122: 2340095.709 | S122: 2262224.308
A123: 10 | B123: 110 | C123: 25000 | D123: 23875 | E123: =+(1+VLOOKUP(A123,hozamok!$A$11:$E$40,3,FALSE))^(1/12) -> 1.003743117 | F123: 3250933.129 | G123: 3020278.192 | H123: 2491040.956 | I123: 2338868.366 | J123: =+(1+VLOOKUP(A123,hozamok!$A$11:$E$40,4,FALSE))^(1/12) -> 1.003743117 | K123: 3250933.129 | L123: 3020278.192 | M123: 2381000.069 | N123: 2285560.176 | O123: =+(1+VLOOKUP(A123,hozamok!$A$11:$E$40,5,FALSE))^(1/12) -> 1.003743117 | P123: 3250933.129 | Q123: 3020278.192 | R123: 2358326.741 | S123: 2279178.613
A124: 10 | B124: 111 | C124: 25000 | D124: 23875 | E124: =+(1+VLOOKUP(A124,hozamok!$A$11:$E$40,3,FALSE))^(1/12) -> 1.003743117 | F124: 3288195.33 | G124: 3054181.324 | H124: 2511446.237 | I124: 2356727.824 | J124: =+(1+VLOOKUP(A124,hozamok!$A$11:$E$40,4,FALSE))^(1/12) -> 1.003743117 | K124: 3288195.33 | L124: 3054181.324 | M124: 2399552.399 | N124: 2302556.483 | O124: =+(1+VLOOKUP(A124,hozamok!$A$11:$E$40,5,FALSE))^(1/12) -> 1.003743117 | P124: 3288195.33 | Q124: 3054181.324 | R124: 2376505.038 | S124: 2296072.618
A125: 10 | B125: 112 | C125: 25000 | D125: 23875 | E125: =+(1+VLOOKUP(A125,hozamok!$A$11:$E$40,3,FALSE))^(1/12) -> 1.003743117 | F125: 3325597.008 | G125: 3088196.14 | H125: 2531813.881 | I125: 2374532.757 | J125: =+(1+VLOOKUP(A125,hozamok!$A$11:$E$40,4,FALSE))^(1/12) -> 1.003743117 | K125: 3325597.008 | L125: 3088196.14 | M125: 2418054.49 | N125: 2319493.272 | O125: =+(1+VLOOKUP(A125,hozamok!$A$11:$E$40,5,FALSE))^(1/12) -> 1.003743117 | P125: 3325597.008 | Q125: 3088196.14 | R125: 2394630.753 | S125: 2312906.539
A126: 10 | B126: 113 | C126: 25000 | D126: 23875 | E126: =+(1+VLOOKUP(A126,hozamok!$A$11:$E$40,3,FALSE))^(1/12) -> 1.003743117 | F126: 3363138.685 | G126: 3122323.008 | H126: 2552143.957 | I126: 2392283.332 | J126: =+(1+VLOOKUP(A126,hozamok!$A$11:$E$40,4,FALSE))^(1/12) -> 1.003743117 | K126: 3363138.685 | L126: 3122323.008 | M126: 2436506.478 | N126: 2336370.75 | O126: =+(1+VLOOKUP(A126,hozamok!$A$11:$E$40,5,FALSE))^(1/12) -> 1.003743117 | P126: 3363138.685 | Q126: 3122323.008 | R126: 2412704.037 | S126: 2329680.59
A127: 10 | B127: 114 | C127: 25000 | D127: 23875 | E127: =+(1+VLOOKUP(A127,hozamok!$A$11:$E$40,3,FALSE))^(1/12) -> 1.003743117 | F127: 3400820.884 | G127: 3156562.298 | H127: 2572436.534 | I127: 2409979.714 | J127: =+(1+VLOOKUP(A127,hozamok!$A$11:$E$40,4,FALSE))^(1/12) -> 1.003743117 | K127: 3400820.884 | L127: 3156562.298 | M127: 2454908.498 | N127: 2353189.126 | O127: =+(1+VLOOKUP(A127,hozamok!$A$11:$E$40,5,FALSE))^(1/12) -> 1.003743117 | P127: 3400820.884 | Q127: 3156562.298 | R127: 2430725.043 | S127: 2346394.983
A128: 10 | B128: 115 | C128: 25000 | D128: 23875 | E128: =+(1+VLOOKUP(A128,hozamok!$A$11:$E$40,3,FALSE))^(1/12) -> 1.003743117 | F128: 3438644.132 | G128: 3190914.38 | H128: 2592691.681 | I128: 2427622.07 | J128: =+(1+VLOOKUP(A128,hozamok!$A$11:$E$40,4,FALSE))^(1/12) -> 1.003743117 | K128: 3438644.132 | L128: 3190914.38 | M128: 2473260.687 | N128: 2369948.607 | O128: =+(1+VLOOKUP(A128,hozamok!$A$11:$E$40,5,FALSE))^(1/12) -> 1.003743117 | P128: 3438644.132 | Q128: 3190914.38 | R128: 2448693.92 | S128: 2363049.931
A129: 10 | B129: 116 | C129: 25000 | D129: 23875 | E129: =+(1+VLOOKUP(A129,hozamok!$A$11:$E$40,3,FALSE))^(1/12) -> 1.003743117 | F129: 3476608.958 | G129: 3225379.626 | H129: 2612909.468 | I129: 2445210.563 | J129: =+(1+VLOOKUP(A129,hozamok!$A$11:$E$40,4,FALSE))^(1/12) -> 1.003743117 | K129: 3476608.958 | L129: 3225379.626 | M129: 2491563.178 | N129: 2386649.398 | O129: =+(1+VLOOKUP(A129,hozamok!$A$11:$E$40,5,FALSE))^(1/12) -> 1.003743117 | P129: 3476608.958 | Q129: 3225379.626 | R129: 2466610.821 | S129: 2379645.644
A130: 10 | B130: 117 | C130: 25000 | D130: 23875 | E130: =+(1+VLOOKUP(A130,hozamok!$A$11:$E$40,3,FALSE))^(1/12) -> 1.003743117 | F130: 3514715.889 | G130: 3259958.408 | H130: 2633089.964 | I130: 2462745.359 | J130: =+(1+VLOOKUP(A130,hozamok!$A$11:$E$40,4,FALSE))^(1/12) -> 1.003743117 | K130: 3514715.889 | L130: 3259958.408 | M130: 2509816.107 | N130: 2403291.706 | O130: =+(1+VLOOKUP(A130,hozamok!$A$11:$E$40,5,FALSE))^(1/12) -> 1.003743117 | P130: 3514715.889 | Q130: 3259958.408 | R130: 2484475.896 | S130: 2396182.335
A131: 10 | B131: 118 | C131: 25000 | D131: 23875 | E131: =+(1+VLOOKUP(A131,hozamok!$A$11:$E$40,3,FALSE))^(1/12) -> 1.003743117 | F131: 3552965.46 | G131: 3294651.1 | H131: 2653233.236 | I131: 2480226.622 | J131: =+(1+VLOOKUP(A131,hozamok!$A$11:$E$40,4,FALSE))^(1/12) -> 1.003743117 | K131: 3552965.46 | L131: 3294651.1 | M131: 2528019.607 | N131: 2419875.734 | O131: =+(1+VLOOKUP(A131,hozamok!$A$11:$E$40,5,FALSE))^(1/12) -> 1.003743117 | P131: 3552965.46 | Q131: 3294651.1 | R131: 2502289.294 | S131: 2412660.211
A132: 10 | B132: 119 | C132: 25000 | D132: 23875 | E132: =+(1+VLOOKUP(A132,hozamok!$A$11:$E$40,3,FALSE))^(1/12) -> 1.003743117 | F132: 3591358.203 | G132: 3329458.078 | H132: 2673339.354 | I132: 2497654.514 | J132: =+(1+VLOOKUP(A132,hozamok!$A$11:$E$40,4,FALSE))^(1/12) -> 1.003743117 | K132: 3591358.203 | L132: 3329458.078 | M132: 2546173.813 | N132: 2436401.688 | O132: =+(1+VLOOKUP(A132,hozamok!$A$11:$E$40,5,FALSE))^(1/12) -> 1.003743117 | P132: 3591358.203 | Q132: 3329458.078 | R132: 2520051.164 | S132: 2429079.484
A133: 10 | B133: 120 | C133: 25000 | D133: 23875 | E133: =+(1+VLOOKUP(A133,hozamok!$A$11:$E$40,3,FALSE))^(1/12) -> 1.003743117 | F133: 3629894.655 | G133: 3364379.718 | H133: =+H132+C133/((1+$C$8)^(B133-1)) -> 2693408.387 | I133: 2515029.199 | J133: =+(1+VLOOKUP(A133,hozamok!$A$11:$E$40,4,FALSE))^(1/12) -> 1.003743117 | K133: 3629894.655 | L133: 3364379.718 | M133: 2564278.858 | N133: 2452869.771 | O133: =+(1+VLOOKUP(A133,hozamok!$A$11:$E$40,5,FALSE))^(1/12) -> 1.003743117 | P133: 3629894.655 | Q133: 3364379.718 | R133: 2537761.657 | S133: 2445440.361
A134: 11 | B134: 121 | C134: 25000 | D134: =+C134*(1-$J$3) -> 23875 | J134: =+(1+VLOOKUP(A134,hozamok!$A$11:$E$40,4,FALSE))^(1/12) -> 1.003788433 | K134: 3668740.977 | L134: 3399569.939 | M134: 2582334.875 | N134: 2469280.184 | O134: =+(1+VLOOKUP(A134,hozamok!$A$11:$E$40,5,FALSE))^(1/12) -> 1.003788433 | P134: 3668740.977 | Q134: 3399569.939 | R134: 2555420.921 | S134: 2461743.049
A135: 11 | B135: 122 | C135: 25000 | D135: 23875 | G135: Kilépési költséggel: | H135: h egy. baloldala: | I135: i egy. baloldala | J135: =+(1+VLOOKUP(A135,hozamok!$A$11:$E$40,4,FALSE))^(1/12) -> 1.003788433 | K135: 3707734.465 | L135: 3434877.678 | M135: 2600341.997 | N135: 2485633.131 | O135: =+(1+VLOOKUP(A135,hozamok!$A$11:$E$40,5,FALSE))^(1/12) -> 1.003788433 | P135: 3707734.465 | Q135: 3434877.678 | R135: 2573029.103 | S135: 2477987.757
A136: 11 | B136: 123 | C136: 25000 | D136: 23875 | G136: =+G133*(1-J6)-J5 -> 3361379.718 | H136: =+G136/((1+$C$8)^(B133)) -> 2693408.386 | I136: =+F133/((1+$C$9)^(B133)) -> 2515029.199 | J136: =+(1+VLOOKUP(A136,hozamok!$A$11:$E$40,4,FALSE))^(1/12) -> 1.003788433 | K136: 3746875.678 | L136: 3470303.33 | M136: 2618300.356 | N136: 2501928.812 | O136: =+(1+VLOOKUP(A136,hozamok!$A$11:$E$40,5,FALSE))^(1/12) -> 1.003788433 | P136: 3746875.678 | Q136: 3470303.33 | R136: 2590586.351 | S136: 2494174.689
A137: 11 | B137: 124 | C137: 25000 | D137: 23875 | J137: =+(1+VLOOKUP(A137,hozamok!$A$11:$E$40,4,FALSE))^(1/12) -> 1.003788433 | K137: 3786165.175 | L137: 3505847.287 | M137: 2636210.085 | N137: 2518167.429 | O137: =+(1+VLOOKUP(A137,hozamok!$A$11:$E$40,5,FALSE))^(1/12) -> 1.003788433 | P137: 3786165.175 | Q137: 3505847.287 | R137: 2608092.814 | S137: 2510304.052
A138: 11 | B138: 125 | C138: 25000 | D138: 23875 | H138: célcella IRR(h) | I138: célcella IRR(i) | J138: =+(1+VLOOKUP(A138,hozamok!$A$11:$E$40,4,FALSE))^(1/12) -> 1.003788433 | K138: 3825603.517 | L138: 3541509.944 | M138: 2654071.315 | N138: 2534349.18 | O138: =+(1+VLOOKUP(A138,hozamok!$A$11:$E$40,5,FALSE))^(1/12) -> 1.003788433 | P138: 3825603.517 | Q138: 3541509.944 | R138: 2625548.637 | S138: 2526376.05
A139: 11 | B139: 126 | C139: 25000 | D139: 23875 | H139: =+H136-H133 -> -0.0005572247319 | I139: =+I136-I133 -> 2.584420145e-07 | J139: =+(1+VLOOKUP(A139,hozamok!$A$11:$E$40,4,FALSE))^(1/12) -> 1.003788433 | K139: 3865191.268 | L139: 3577291.698 | M139: 2671884.177 | N139: 2550474.264 | O139: =+(1+VLOOKUP(A139,hozamok!$A$11:$E$40,5,FALSE))^(1/12) -> 1.003788433 | P139: 3865191.268 | Q139: 3577291.698 | R139: 2642953.967 | S139: 2542390.887
A140: 11 | B140: 127 | C140: 25000 | D140: 23875 | J140: =+(1+VLOOKUP(A140,hozamok!$A$11:$E$40,4,FALSE))^(1/12) -> 1.003788433 | K140: 3904928.995 | L140: 3613192.947 | M140: 2689648.802 | N140: 2566542.882 | O140: =+(1+VLOOKUP(A140,hozamok!$A$11:$E$40,5,FALSE))^(1/12) -> 1.003788433 | P140: 3904928.995 | Q140: 3613192.947 | R140: 2660308.951 | S140: 2558348.767
A141: 11 | B141: 128 | C141: 25000 | D141: 23875 | J141: =+(1+VLOOKUP(A141,hozamok!$A$11:$E$40,4,FALSE))^(1/12) -> 1.003788433 | K141: 3944817.266 | L141: 3649214.09 | M141: 2707365.322 | N141: 2582555.229 | O141: =+(1+VLOOKUP(A141,hozamok!$A$11:$E$40,5,FALSE))^(1/12) -> 1.003788433 | P141: 3944817.266 | Q141: 3649214.09 | R141: 2677613.734 | S141: 2574249.892
A142: 11 | B142: 129 | C142: 25000 | D142: 23875 | J142: =+(1+VLOOKUP(A142,hozamok!$A$11:$E$40,4,FALSE))^(1/12) -> 1.003788433 | K142: 3984856.651 | L142: 3685355.527 | M142: 2725033.865 | N142: 2598511.503 | O142: =+(1+VLOOKUP(A142,hozamok!$A$11:$E$40,5,FALSE))^(1/12) -> 1.003788433 | P142: 3984856.651 | Q142: 3685355.527 | R142: 2694868.461 | S142: 2590094.465
A143: =+ROUNDUP(B143/12,0) -> 11 | B143: 130 | C143: =+$C$2 -> 25000 | D143: 23875 | J143: =+(1+VLOOKUP(A143,hozamok!$A$11:$E$40,4,FALSE))^(1/12) -> 1.003788433 | K143: 4025047.722 | L143: 3721617.66 | M143: 2742654.563 | N143: 2614411.901 | O143: =+(1+VLOOKUP(A143,hozamok!$A$11:$E$40,5,FALSE))^(1/12) -> 1.003788433 | P143: 4025047.722 | Q143: 3721617.66 | R143: 2712073.276 | S143: 2605882.685
A144: 11 | B144: 131 | C144: 25000 | D144: 23875 | J144: =+(1+VLOOKUP(A144,hozamok!$A$11:$E$40,4,FALSE))^(1/12) -> 1.003788433 | K144: =+(K143+C144)*J144 -> 4065391.055 | L144: =+(L143+D144)*(J144-$K$8) -> 3758000.892 | M144: =+M143+C144/((1+$D$8)^(B144-1)) -> 2760227.544 | N144: =+N143+C144/((1+$D$9)^(B144-1)) -> 2630256.618 | O144: =+(1+VLOOKUP(A144,hozamok!$A$11:$E$40,5,FALSE))^(1/12) -> 1.003788433 | P144: =+(P143+C144)*O144 -> 4065391.055 | Q144: =+(Q143+D144)*(O144-$K$8) -> 3758000.892 | R144: =+R143+C144/((1+$E$8)^(B144-1)) -> 2729228.325 | S144: =+S143+C144/((1+$E$9)^(B144-1)) -> 2621614.753
A145: 11 | B145: 132 | C145: 25000 | D145: 23875 | J145: =+(1+VLOOKUP(A145,hozamok!$A$11:$E$40,4,FALSE))^(1/12) -> 1.003788433 | K145: 4105887.225 | L145: 3794505.627 | M145: 2777752.939 | N145: 2646045.85 | O145: =+(1+VLOOKUP(A145,hozamok!$A$11:$E$40,5,FALSE))^(1/12) -> 1.003788433 | P145: 4105887.225 | Q145: 3794505.627 | R145: 2746333.752 | S145: 2637290.87
A146: 12 | B146: 133 | C146: 25000 | D146: 23875 | J146: =+(1+VLOOKUP(A146,hozamok!$A$11:$E$40,4,FALSE))^(1/12) -> 1.003756334 | K146: 4146404.218 | L146: 3831009.707 | M146: 2795230.875 | N146: 2661779.789 | O146: =+(1+VLOOKUP(A146,hozamok!$A$11:$E$40,5,FALSE))^(1/12) -> 1.003756334 | P146: 4146404.218 | Q146: 3831009.707 | R146: 2763389.699 | S146: 2652911.235
A147: 12 | B147: 134 | C147: 25000 | D147: 23875 | J147: =+(1+VLOOKUP(A147,hozamok!$A$11:$E$40,4,FALSE))^(1/12) -> 1.003756334 | K147: 4187073.406 | L147: 3867634.523 | M147: 2812661.482 | N147: 2677458.631 | O147: =+(1+VLOOKUP(A147,hozamok!$A$11:$E$40,5,FALSE))^(1/12) -> 1.003756334 | P147: 4187073.406 | Q147: 3867634.523 | R147: 2780396.31 | S147: 2668476.044
A148: 12 | B148: 135 | C148: 25000 | D148: 23875 | J148: =+(1+VLOOKUP(A148,hozamok!$A$11:$E$40,4,FALSE))^(1/12) -> 1.003756334 | K148: 4227895.361 | L148: 3904380.473 | M148: 2830044.887 | N148: 2693082.568 | O148: =+(1+VLOOKUP(A148,hozamok!$A$11:$E$40,5,FALSE))^(1/12) -> 1.003756334 | P148: 4227895.361 | Q148: 3904380.473 | R148: 2797353.728 | S148: 2683985.497
A149: 12 | B149: 136 | C149: 25000 | D149: 23875 | J149: =+(1+VLOOKUP(A149,hozamok!$A$11:$E$40,4,FALSE))^(1/12) -> 1.003756334 | K149: 4268870.658 | L149: 3941247.958 | M149: 2847381.218 | N149: 2708651.792 | O149: =+(1+VLOOKUP(A149,hozamok!$A$11:$E$40,5,FALSE))^(1/12) -> 1.003756334 | P149: 4268870.658 | Q149: 3941247.958 | R149: 2814262.094 | S149: 2699439.79
A150: 12 | B150: 137 | C150: 25000 | D150: 23875 | J150: =+(1+VLOOKUP(A150,hozamok!$A$11:$E$40,4,FALSE))^(1/12) -> 1.003756334 | K150: 4309999.871 | L150: 3978237.381 | M150: 2864670.603 | N150: 2724166.495 | O150: =+(1+VLOOKUP(A150,hozamok!$A$11:$E$40,5,FALSE))^(1/12) -> 1.003756334 | P150: 4309999.871 | Q150: 3978237.381 | R150: 2831121.552 | S150: 2714839.119
A151: 12 | B151: 138 | C151: 25000 | D151: 23875 | J151: =+(1+VLOOKUP(A151,hozamok!$A$11:$E$40,4,FALSE))^(1/12) -> 1.003756334 | K151: 4351283.579 | L151: 4015349.144 | M151: 2881913.17 | N151: 2739626.867 | O151: =+(1+VLOOKUP(A151,hozamok!$A$11:$E$40,5,FALSE))^(1/12) -> 1.003756334 | P151: 4351283.579 | Q151: 4015349.144 | R151: 2847932.241 | S151: 2730183.679
A152: 12 | B152: 139 | C152: 25000 | D152: 23875 | J152: =+(1+VLOOKUP(A152,hozamok!$A$11:$E$40,4,FALSE))^(1/12) -> 1.003756334 | K152: 4392722.362 | L152: 4052583.652 | M152: 2899109.043 | N152: 2755033.1 | O152: =+(1+VLOOKUP(A152,hozamok!$A$11:$E$40,5,FALSE))^(1/12) -> 1.003756334 | P152: 4392722.362 | Q152: 4052583.652 | R152: 2864694.304 | S152: 2745473.666
A153: 12 | B153: 140 | C153: 25000 | D153: 23875 | J153: =+(1+VLOOKUP(A153,hozamok!$A$11:$E$40,4,FALSE))^(1/12) -> 1.003756334 | K153: 4434316.804 | L153: 4089941.311 | M153: 2916258.351 | N153: 2770385.383 | O153: =+(1+VLOOKUP(A153,hozamok!$A$11:$E$40,5,FALSE))^(1/12) -> 1.003756334 | P153: 4434316.804 | Q153: 4089941.311 | R153: 2881407.881 | S153: 2760709.274
A154: 12 | B154: 141 | C154: 25000 | D154: 23875 | J154: =+(1+VLOOKUP(A154,hozamok!$A$11:$E$40,4,FALSE))^(1/12) -> 1.003756334 | K154: 4476067.488 | L154: 4127422.528 | M154: 2933361.219 | N154: 2785683.904 | O154: =+(1+VLOOKUP(A154,hozamok!$A$11:$E$40,5,FALSE))^(1/12) -> 1.003756334 | P154: 4476067.488 | Q154: 4127422.528 | R154: 2898073.113 | S154: 2775890.695
A155: 12 | B155: 142 | C155: 25000 | D155: 23875 | J155: =+(1+VLOOKUP(A155,hozamok!$A$11:$E$40,4,FALSE))^(1/12) -> 1.003756334 | K155: 4517975.001 | L155: 4165027.713 | M155: 2950417.774 | N155: 2800928.852 | O155: =+(1+VLOOKUP(A155,hozamok!$A$11:$E$40,5,FALSE))^(1/12) -> 1.003756334 | P155: 4517975.001 | Q155: 4165027.713 | R155: 2914690.138 | S155: 2791018.123
A156: 12 | B156: 143 | C156: 25000 | D156: 23875 | J156: =+(1+VLOOKUP(A156,hozamok!$A$11:$E$40,4,FALSE))^(1/12) -> 1.003756334 | K156: 4560039.934 | L156: 4202757.274 | M156: 2967428.139 | N156: 2816120.414 | O156: =+(1+VLOOKUP(A156,hozamok!$A$11:$E$40,5,FALSE))^(1/12) -> 1.003756334 | P156: 4560039.934 | Q156: 4202757.274 | R156: 2931259.097 | S156: 2806091.75
A157: 12 | B157: 144 | C157: 25000 | D157: 23875 | J157: =+(1+VLOOKUP(A157,hozamok!$A$11:$E$40,4,FALSE))^(1/12) -> 1.003756334 | K157: 4602262.876 | L157: 4240611.624 | M157: 2984392.441 | N157: 2831258.778 | O157: =+(1+VLOOKUP(A157,hozamok!$A$11:$E$40,5,FALSE))^(1/12) -> 1.003756334 | P157: 4602262.876 | Q157: 4240611.624 | R157: 2947780.128 | S157: 2821111.767
A158: 13 | B158: 145 | C158: 25000 | D158: 23875 | J158: =+(1+VLOOKUP(A158,hozamok!$A$11:$E$40,4,FALSE))^(1/12) -> 1.003724634 | K158: 4644497.738 | L158: 4278455.991 | M158: 3001310.804 | N158: 2846344.129 | O158: =+(1+VLOOKUP(A158,hozamok!$A$11:$E$40,5,FALSE))^(1/12) -> 1.003724634 | P158: 4644497.738 | Q158: 4278455.991 | R158: 2964253.371 | S158: 2836078.364
A159: 13 | B159: 146 | C159: 25000 | D159: 23875 | J159: =+(1+VLOOKUP(A159,hozamok!$A$11:$E$40,4,FALSE))^(1/12) -> 1.003724634 | K159: 4686889.909 | L159: 4316424.327 | M159: 3018183.353 | N159: 2861376.654 | O159: =+(1+VLOOKUP(A159,hozamok!$A$11:$E$40,5,FALSE))^(1/12) -> 1.003724634 | P159: 4686889.909 | Q159: 4316424.327 | R159: 2980678.963 | S159: 2850991.732
A160: 13 | B160: 147 | C160: 25000 | D160: 23875 | J160: =+(1+VLOOKUP(A160,hozamok!$A$11:$E$40,4,FALSE))^(1/12) -> 1.003724634 | K160: 4729439.976 | L160: 4354517.038 | M160: 3035010.212 | N160: 2876356.537 | O160: =+(1+VLOOKUP(A160,hozamok!$A$11:$E$40,5,FALSE))^(1/12) -> 1.003724634 | P160: 4729439.976 | Q160: 4354517.038 | R160: 2997057.043 | S160: 2865852.06
A161: 13 | B161: 148 | C161: 25000 | D161: 23875 | J161: =+(1+VLOOKUP(A161,hozamok!$A$11:$E$40,4,FALSE))^(1/12) -> 1.003724634 | K161: 4772148.526 | L161: 4392734.53 | M161: 3051791.504 | N161: 2891283.963 | O161: =+(1+VLOOKUP(A161,hozamok!$A$11:$E$40,5,FALSE))^(1/12) -> 1.003724634 | P161: 4772148.526 | Q161: 4392734.53 | R161: 3013387.747 | S161: 2880659.537
A162: 13 | B162: 149 | C162: 25000 | D162: 23875 | J162: =+(1+VLOOKUP(A162,hozamok!$A$11:$E$40,4,FALSE))^(1/12) -> 1.003724634 | K162: 4815016.15 | L162: 4431077.213 | M162: 3068527.353 | N162: 2906159.115 | O162: =+(1+VLOOKUP(A162,hozamok!$A$11:$E$40,5,FALSE))^(1/12) -> 1.003724634 | P162: 4815016.15 | Q162: 4431077.213 | R162: 3029671.213 | S162: 2895414.35
A163: 13 | B163: 150 | C163: 25000 | D163: 23875 | J163: =+(1+VLOOKUP(A163,hozamok!$A$11:$E$40,4,FALSE))^(1/12) -> 1.003724634 | K163: 4858043.44 | L163: 4469545.497 | M163: 3085217.882 | N163: 2920982.177 | O163: =+(1+VLOOKUP(A163,hozamok!$A$11:$E$40,5,FALSE))^(1/12) -> 1.003724634 | P163: 4858043.44 | Q163: 4469545.497 | R163: 3045907.577 | S163: 2910116.688
A164: 13 | B164: 151 | C164: 25000 | D164: 23875 | J164: =+(1+VLOOKUP(A164,hozamok!$A$11:$E$40,4,FALSE))^(1/12) -> 1.003724634 | K164: 4901230.991 | L164: 4508139.793 | M164: 3101863.213 | N164: 2935753.33 | O164: =+(1+VLOOKUP(A164,hozamok!$A$11:$E$40,5,FALSE))^(1/12) -> 1.003724634 | P164: 4901230.991 | Q164: 4508139.793 | R164: 3062096.976 | S164: 2924766.735
A165: 13 | B165: 152 | C165: 25000 | D165: 23875 | J165: =+(1+VLOOKUP(A165,hozamok!$A$11:$E$40,4,FALSE))^(1/12) -> 1.003724634 | K165: 4944579.4 | L165: 4546860.514 | M165: 3118463.469 | N165: 2950472.757 | O165: =+(1+VLOOKUP(A165,hozamok!$A$11:$E$40,5,FALSE))^(1/12) -> 1.003724634 | P165: 4944579.4 | Q165: 4546860.514 | R165: 3078239.546 | S165: 2939364.68
A166: 13 | B166: 153 | C166: 25000 | D166: 23875 | J166: =+(1+VLOOKUP(A166,hozamok!$A$11:$E$40,4,FALSE))^(1/12) -> 1.003724634 | K166: 4988089.265 | L166: 4585708.074 | M166: 3135018.772 | N166: 2965140.639 | O166: =+(1+VLOOKUP(A166,hozamok!$A$11:$E$40,5,FALSE))^(1/12) -> 1.003724634 | P166: 4988089.265 | Q166: 4585708.074 | R166: 3094335.421 | S166: 2953910.705
A167: 13 | B167: 154 | C167: 25000 | D167: 23875 | J167: =+(1+VLOOKUP(A167,hozamok!$A$11:$E$40,4,FALSE))^(1/12) -> 1.003724634 | K167: 5031761.189 | L167: 4624682.889 | M167: 3151529.245 | N167: 2979757.156 | O167: =+(1+VLOOKUP(A167,hozamok!$A$11:$E$40,5,FALSE))^(1/12) -> 1.003724634 | P167: 5031761.189 | Q167: 4624682.889 | R167: 3110384.738 | S167: 2968404.998
A168: 13 | B168: 155 | C168: 25000 | D168: 23875 | J168: =+(1+VLOOKUP(A168,hozamok!$A$11:$E$40,4,FALSE))^(1/12) -> 1.003724634 | K168: 5075595.775 | L168: 4663785.376 | M168: 3167995.007 | N168: 2994322.488 | O168: =+(1+VLOOKUP(A168,hozamok!$A$11:$E$40,5,FALSE))^(1/12) -> 1.003724634 | P168: 5075595.775 | Q168: 4663785.376 | R168: 3126387.63 | S168: 2982847.741
A169: 13 | B169: 156 | C169: 25000 | D169: 23875 | J169: =+(1+VLOOKUP(A169,hozamok!$A$11:$E$40,4,FALSE))^(1/12) -> 1.003724634 | K169: 5119593.629 | L169: 4703015.952 | M169: 3184416.18 | N169: 3008836.815 | O169: =+(1+VLOOKUP(A169,hozamok!$A$11:$E$40,5,FALSE))^(1/12) -> 1.003724634 | P169: 5119593.629 | Q169: 4703015.952 | R169: 3142344.232 | S169: 2997239.117
A170: 14 | B170: 157 | C170: 25000 | D170: 23875 | J170: =+(1+VLOOKUP(A170,hozamok!$A$11:$E$40,4,FALSE))^(1/12) -> 1.003701294 | K170: 5163635.284 | L170: 4742264.712 | M170: 3200792.886 | N170: 3023300.314 | O170: =+(1+VLOOKUP(A170,hozamok!$A$11:$E$40,5,FALSE))^(1/12) -> 1.003701294 | P170: 5163635.284 | Q170: 4742264.712 | R170: 3158254.678 | S170: 3011579.311
A171: 14 | B171: 158 | C171: 25000 | D171: 23875 | J171: =+(1+VLOOKUP(A171,hozamok!$A$11:$E$40,4,FALSE))^(1/12) -> 1.003701294 | K171: 5207839.95 | L171: 4781641.124 | M171: 3217125.244 | N171: 3037713.165 | O171: =+(1+VLOOKUP(A171,hozamok!$A$11:$E$40,5,FALSE))^(1/12) -> 1.003701294 | P171: 5207839.95 | Q171: 4781641.124 | R171: 3174119.101 | S171: 3025868.502
A172: 14 | B172: 159 | C172: 25000 | D172: 23875 | J172: =+(1+VLOOKUP(A172,hozamok!$A$11:$E$40,4,FALSE))^(1/12) -> 1.003701294 | K172: 5252208.23 | L172: 4821145.605 | M172: 3233413.374 | N172: 3052075.543 | O172: =+(1+VLOOKUP(A172,hozamok!$A$11:$E$40,5,FALSE))^(1/12) -> 1.003701294 | P172: 5252208.23 | Q172: 4821145.605 | R172: 3189937.635 | S172: 3040106.874
A173: 14 | B173: 160 | C173: 25000 | D173: 23875 | J173: =+(1+VLOOKUP(A173,hozamok!$A$11:$E$40,4,FALSE))^(1/12) -> 1.003701294 | K173: 5296740.73 | L173: 4860778.57 | M173: 3249657.397 | N173: 3066387.627 | O173: =+(1+VLOOKUP(A173,hozamok!$A$11:$E$40,5,FALSE))^(1/12) -> 1.003701294 | P173: 5296740.73 | Q173: 4860778.57 | R173: 3205710.413 | S173: 3054294.606
A174: 14 | B174: 161 | C174: 25000 | D174: 23875 | J174: =+(1+VLOOKUP(A174,hozamok!$A$11:$E$40,4,FALSE))^(1/12) -> 1.003701294 | K174: 5341438.058 | L174: 4900540.437 | M174: 3265857.432 | N174: 3080649.592 | O174: =+(1+VLOOKUP(A174,hozamok!$A$11:$E$40,5,FALSE))^(1/12) -> 1.003701294 | P174: 5341438.058 | Q174: 4900540.437 | R174: 3221437.565 | S174: 3068431.879
A175: 14 | B175: 162 | C175: 25000 | D175: 23875 | J175: =+(1+VLOOKUP(A175,hozamok!$A$11:$E$40,4,FALSE))^(1/12) -> 1.003701294 | K175: 5386300.824 | L175: 4940431.626 | M175: 3282013.597 | N175: 3094861.614 | O175: =+(1+VLOOKUP(A175,hozamok!$A$11:$E$40,5,FALSE))^(1/12) -> 1.003701294 | P175: 5386300.824 | Q175: 4940431.626 | R175: 3237119.226 | S175: 3082518.872
A176: 14 | B176: 163 | C176: 25000 | D176: 23875 | J176: =+(1+VLOOKUP(A176,hozamok!$A$11:$E$40,4,FALSE))^(1/12) -> 1.003701294 | K176: 5431329.64 | L176: 4980452.558 | M176: 3298126.012 | N176: 3109023.868 | O176: =+(1+VLOOKUP(A176,hozamok!$A$11:$E$40,5,FALSE))^(1/12) -> 1.003701294 | P176: 5431329.64 | Q176: 4980452.558 | R176: 3252755.526 | S176: 3096555.764
A177: 14 | B177: 164 | C177: 25000 | D177: 23875 | J177: =+(1+VLOOKUP(A177,hozamok!$A$11:$E$40,4,FALSE))^(1/12) -> 1.003701294 | K177: 5476525.122 | L177: 5020603.653 | M177: 3314194.795 | N177: 3123136.527 | O177: =+(1+VLOOKUP(A177,hozamok!$A$11:$E$40,5,FALSE))^(1/12) -> 1.003701294 | P177: 5476525.122 | Q177: 5020603.653 | R177: 3268346.596 | S177: 3110542.733
A178: 14 | B178: 165 | C178: 25000 | D178: 23875 | J178: =+(1+VLOOKUP(A178,hozamok!$A$11:$E$40,4,FALSE))^(1/12) -> 1.003701294 | K178: 5521887.885 | L178: 5060885.336 | M178: 3330220.064 | N178: 3137199.766 | O178: =+(1+VLOOKUP(A178,hozamok!$A$11:$E$40,5,FALSE))^(1/12) -> 1.003701294 | P178: 5521887.885 | Q178: 5060885.336 | R178: 3283892.567 | S178: 3124479.957
A179: 14 | B179: 166 | C179: 25000 | D179: 23875 | J179: =+(1+VLOOKUP(A179,hozamok!$A$11:$E$40,4,FALSE))^(1/12) -> 1.003701294 | K179: 5567418.549 | L179: 5101298.032 | M179: 3346201.938 | N179: 3151213.757 | O179: =+(1+VLOOKUP(A179,hozamok!$A$11:$E$40,5,FALSE))^(1/12) -> 1.003701294 | P179: 5567418.549 | Q179: 5101298.032 | R179: 3299393.57 | S179: 3138367.613
A180: 14 | B180: 167 | C180: 25000 | D180: 23875 | J180: =+(1+VLOOKUP(A180,hozamok!$A$11:$E$40,4,FALSE))^(1/12) -> 1.003701294 | K180: 5613117.735 | L180: 5141842.166 | M180: 3362140.533 | N180: 3165178.674 | O180: =+(1+VLOOKUP(A180,hozamok!$A$11:$E$40,5,FALSE))^(1/12) -> 1.003701294 | P180: 5613117.735 | Q180: 5141842.166 | R180: 3314849.734 | S180: 3152205.876
A181: 14 | B181: 168 | C181: 25000 | D181: 23875 | J181: =+(1+VLOOKUP(A181,hozamok!$A$11:$E$40,4,FALSE))^(1/12) -> 1.003701294 | K181: 5658986.067 | L181: 5182518.166 | M181: 3378035.967 | N181: 3179094.687 | O181: =+(1+VLOOKUP(A181,hozamok!$A$11:$E$40,5,FALSE))^(1/12) -> 1.003701294 | P181: 5658986.067 | Q181: 5182518.166 | R181: 3330261.191 | S181: 3165994.924
A182: 15 | B182: 169 | C182: 25000 | D182: 23875 | J182: =+(1+VLOOKUP(A182,hozamok!$A$11:$E$40,4,FALSE))^(1/12) -> 1.003690252 | K182: 5704961.411 | L182: 5223268.972 | M182: 3393888.356 | N182: 3192961.969 | O182: =+(1+VLOOKUP(A182,hozamok!$A$11:$E$40,5,FALSE))^(1/12) -> 1.003690252 | P182: 5704961.411 | Q182: 5223268.972 | R182: 3345628.067 | S182: 3179734.93
A183: 15 | B183: 170 | C183: 25000 | D183: 23875 | J183: =+(1+VLOOKUP(A183,hozamok!$A$11:$E$40,4,FALSE))^(1/12) -> 1.003690252 | K183: 5751106.415 | L183: 5264151.867 | M183: 3409697.818 | N183: 3206780.689 | O183: =+(1+VLOOKUP(A183,hozamok!$A$11:$E$40,5,FALSE))^(1/12) -> 1.003690252 | P183: 5751106.415 | Q183: 5264151.867 | R183: 3360950.494 | S183: 3193426.069
A184: 15 | B184: 171 | C184: 25000 | D184: 23875 | J184: =+(1+VLOOKUP(A184,hozamok!$A$11:$E$40,4,FALSE))^(1/12) -> 1.003690252 | K184: 5797421.705 | L184: 5305167.278 | M184: 3425464.468 | N184: 3220551.019 | O184: =+(1+VLOOKUP(A184,hozamok!$A$11:$E$40,5,FALSE))^(1/12) -> 1.003690252 | P184: 5797421.705 | Q184: 5305167.278 | R184: 3376228.599 | S184: 3207068.515
A185: 15 | B185: 172 | C185: 25000 | D185: 23875 | J185: =+(1+VLOOKUP(A185,hozamok!$A$11:$E$40,4,FALSE))^(1/12) -> 1.003690252 | K185: 5843907.911 | L185: 5346315.635 | M185: 3441188.423 | N185: 3234273.126 | O185: =+(1+VLOOKUP(A185,hozamok!$A$11:$E$40,5,FALSE))^(1/12) -> 1.003690252 | P185: 5843907.911 | Q185: 5346315.635 | R185: 3391462.511 | S185: 3220662.441
A186: 15 | B186: 173 | C186: 25000 | D186: 23875 | J186: =+(1+VLOOKUP(A186,hozamok!$A$11:$E$40,4,FALSE))^(1/12) -> 1.003690252 | K186: 5890565.662 | L186: 5387597.369 | M186: 3456869.798 | N186: 3247947.181 | O186: =+(1+VLOOKUP(A186,hozamok!$A$11:$E$40,5,FALSE))^(1/12) -> 1.003690252 | P186: 5890565.662 | Q186: 5387597.369 | R186: 3406652.356 | S186: 3234208.02
A187: 15 | B187: 174 | C187: 25000 | D187: 23875 | J187: =+(1+VLOOKUP(A187,hozamok!$A$11:$E$40,4,FALSE))^(1/12) -> 1.003690252 | K187: 5937395.593 | L187: 5429012.911 | M187: 3472508.708 | N187: 3261573.352 | O187: =+(1+VLOOKUP(A187,hozamok!$A$11:$E$40,5,FALSE))^(1/12) -> 1.003690252 | P187: 5937395.593 | Q187: 5429012.911 | R187: 3421798.264 | S187: 3247705.423
A188: 15 | B188: 175 | C188: 25000 | D188: 23875 | J188: =+(1+VLOOKUP(A188,hozamok!$A$11:$E$40,4,FALSE))^(1/12) -> 1.003690252 | K188: 5984398.337 | L188: 5470562.697 | M188: 3488105.268 | N188: 3275151.805 | O188: =+(1+VLOOKUP(A188,hozamok!$A$11:$E$40,5,FALSE))^(1/12) -> 1.003690252 | P188: 5984398.337 | Q188: 5470562.697 | R188: 3436900.36 | S188: 3261154.822
A189: 15 | B189: 176 | C189: 25000 | D189: 23875 | J189: =+(1+VLOOKUP(A189,hozamok!$A$11:$E$40,4,FALSE))^(1/12) -> 1.003690252 | K189: 6031574.534 | L189: 5512247.16 | M189: 3503659.594 | N189: 3288682.709 | O189: =+(1+VLOOKUP(A189,hozamok!$A$11:$E$40,5,FALSE))^(1/12) -> 1.003690252 | P189: 6031574.534 | Q189: 5512247.16 | R189: 3451958.773 | S189: 3274556.388
A190: 15 | B190: 177 | C190: 25000 | D190: 23875 | J190: =+(1+VLOOKUP(A190,hozamok!$A$11:$E$40,4,FALSE))^(1/12) -> 1.003690252 | K190: 6078924.823 | L190: 5554066.738 | M190: 3519171.799 | N190: 3302166.23 | O190: =+(1+VLOOKUP(A190,hozamok!$A$11:$E$40,5,FALSE))^(1/12) -> 1.003690252 | P190: 6078924.823 | Q190: 5554066.738 | R190: 3466973.627 | S190: 3287910.29
A191: 15 | B191: 178 | C191: 25000 | D191: 23875 | J191: =+(1+VLOOKUP(A191,hozamok!$A$11:$E$40,4,FALSE))^(1/12) -> 1.003690252 | K191: 6126449.846 | L191: 5596021.868 | M191: 3534641.997 | N191: 3315602.533 | O191: =+(1+VLOOKUP(A191,hozamok!$A$11:$E$40,5,FALSE))^(1/12) -> 1.003690252 | P191: 6126449.846 | Q191: 5596021.868 | R191: 3481945.049 | S191: 3301216.699
A192: 15 | B192: 179 | C192: 25000 | D192: 23875 | J192: =+(1+VLOOKUP(A192,hozamok!$A$11:$E$40,4,FALSE))^(1/12) -> 1.003690252 | K192: 6174150.249 | L192: 5638112.99 | M192: 3550070.303 | N192: 3328991.785 | O192: =+(1+VLOOKUP(A192,hozamok!$A$11:$E$40,5,FALSE))^(1/12) -> 1.003690252 | P192: 6174150.249 | Q192: 5638112.99 | R192: 3496873.165 | S192: 3314475.783
A193: 15 | B193: 180 | C193: 25000 | D193: 23875 | J193: =+(1+VLOOKUP(A193,hozamok!$A$11:$E$40,4,FALSE))^(1/12) -> 1.003690252 | K193: 6222026.678 | L193: 5680340.544 | M193: 3565456.829 | N193: 3342334.149 | O193: =+(1+VLOOKUP(A193,hozamok!$A$11:$E$40,5,FALSE))^(1/12) -> 1.003690252 | P193: 6222026.678 | Q193: 5680340.544 | R193: 3511758.099 | S193: 3327687.711
A194: 16 | B194: 181 | C194: 25000 | D194: 23875 | J194: =+(1+VLOOKUP(A194,hozamok!$A$11:$E$40,4,FALSE))^(1/12) -> 1.003678524 | K194: 6270006.517 | L194: 5722638.074 | M194: 3580801.689 | N194: 3355629.79 | O194: =+(1+VLOOKUP(A194,hozamok!$A$11:$E$40,5,FALSE))^(1/12) -> 1.003678524 | P194: 6270006.517 | Q194: 5722638.074 | R194: 3526599.978 | S194: 3340852.65
A195: 16 | B195: 182 | C195: 25000 | D195: 23875 | J195: =+(1+VLOOKUP(A195,hozamok!$A$11:$E$40,4,FALSE))^(1/12) -> 1.003678524 | K195: 6318162.851 | L195: 5765072.209 | M195: 3596104.996 | N195: 3368878.872 | O195: =+(1+VLOOKUP(A195,hozamok!$A$11:$E$40,5,FALSE))^(1/12) -> 1.003678524 | P195: 6318162.851 | Q195: 5765072.209 | R195: 3541398.924 | S195: 3353970.767
A196: 16 | B196: 183 | C196: 25000 | D196: 23875 | J196: =+(1+VLOOKUP(A196,hozamok!$A$11:$E$40,4,FALSE))^(1/12) -> 1.003678524 | K196: 6366496.329 | L196: 5807643.39 | M196: 3611366.861 | N196: 3382081.558 | O196: =+(1+VLOOKUP(A196,hozamok!$A$11:$E$40,5,FALSE))^(1/12) -> 1.003678524 | P196: 6366496.329 | Q196: 5807643.39 | R196: 3556155.064 | S196: 3367042.229
A197: 16 | B197: 184 | C197: 25000 | D197: 23875 | J197: =+(1+VLOOKUP(A197,hozamok!$A$11:$E$40,4,FALSE))^(1/12) -> 1.003678524 | K197: 6415007.603 | L197: 5850352.061 | M197: 3626587.399 | N197: 3395238.009 | O197: =+(1+VLOOKUP(A197,hozamok!$A$11:$E$40,5,FALSE))^(1/12) -> 1.003678524 | P197: 6415007.603 | Q197: 5850352.061 | R197: 3570868.519 | S197: 3380067.202
A198: 16 | B198: 185 | C198: 25000 | D198: =+C198*(1-$J$3) -> 23875 | J198: =+(1+VLOOKUP(A198,hozamok!$A$11:$E$40,4,FALSE))^(1/12) -> 1.003678524 | K198: 6463697.327 | L198: 5893198.666 | M198: 3641766.719 | N198: 3408348.389 | O198: =+(1+VLOOKUP(A198,hozamok!$A$11:$E$40,5,FALSE))^(1/12) -> 1.003678524 | P198: 6463697.327 | Q198: 5893198.666 | R198: 3585539.415 | S198: 3393045.851
A199: 16 | B199: 186 | C199: 25000 | D199: 23875 | J199: =+(1+VLOOKUP(A199,hozamok!$A$11:$E$40,4,FALSE))^(1/12) -> 1.003678524 | K199: 6512566.157 | L199: 5936183.649 | M199: 3656904.934 | N199: 3421412.858 | O199: =+(1+VLOOKUP(A199,hozamok!$A$11:$E$40,5,FALSE))^(1/12) -> 1.003678524 | P199: 6512566.157 | Q199: 5936183.649 | R199: 3600167.873 | S199: 3405978.34
A200: 16 | B200: 187 | C200: 25000 | D200: 23875 | J200: =+(1+VLOOKUP(A200,hozamok!$A$11:$E$40,4,FALSE))^(1/12) -> 1.003678524 | K200: 6561614.753 | L200: 5979307.458 | M200: 3672002.156 | N200: 3434431.578 | O200: =+(1+VLOOKUP(A200,hozamok!$A$11:$E$40,5,FALSE))^(1/12) -> 1.003678524 | P200: 6561614.753 | Q200: 5979307.458 | R200: 3614754.017 | S200: 3418864.835
A201: 16 | B201: 188 | C201: 25000 | D201: 23875 | J201: =+(1+VLOOKUP(A201,hozamok!$A$11:$E$40,4,FALSE))^(1/12) -> 1.003678524 | K201: 6610843.775 | L201: 6022570.541 | M201: 3687058.495 | N201: 3447404.707 | O201: =+(1+VLOOKUP(A201,hozamok!$A$11:$E$40,5,FALSE))^(1/12) -> 1.003678524 | P201: 6610843.775 | Q201: 6022570.541 | R201: 3629297.969 | S201: 3431705.499
A202: 16 | B202: 189 | C202: 25000 | D202: 23875 | J202: =+(1+VLOOKUP(A202,hozamok!$A$11:$E$40,4,FALSE))^(1/12) -> 1.003678524 | K202: 6660253.887 | L202: 6065973.348 | M202: 3702074.061 | N202: 3460332.407 | O202: =+(1+VLOOKUP(A202,hozamok!$A$11:$E$40,5,FALSE))^(1/12) -> 1.003678524 | P202: 6660253.887 | Q202: 6065973.348 | R202: 3643799.852 | S202: 3444500.494
... 175 more rows

Sheet hozamok
A2: Main menu | B2: Hungary
B3: HU_31_12_2018_GVT_LLP_15_EXT_45_UFR_4.35
A4: Coupon_freq | B4: 0
A5: LLP | B5: 15
A6: Convergence | B6: 45
A7: UFR | B7: 4.35
A8: alpha_fit | B8: 0.060968
A9: CRA | B9: 10 | C9: forward hozamok
A10: VA | C10: 10 éves forward | D10: 20 éves forward | E10: 30 éves forward
A11: 1 | B11: 0.00438 | C11: =$B11 -> 0.00438 | D11: =$B11 -> 0.00438 | E11: =$B11 -> 0.00438
A12: 2 | B12: 0.0103 | C12: =(1+$B12)^$A12/(1+$B11)^$A11-1 -> 0.01625489357 | D12: =(1+$B12)^$A12/(1+$B11)^$A11-1 -> 0.01625489357 | E12: =(1+$B12)^$A12/(1+$B11)^$A11-1 -> 0.01625489357
A13: 3 | B13: 0.01591 | C13: =(1+$B13)^$A13/(1+$B12)^$A12-1 -> 0.0272236267 | D13: 0.0272236267 | E13: 0.0272236267
A14: 4 | B14: 0.01994 | C14: 0.03212617324 | D14: 0.03212617324 | E14: 0.03212617324
A15: 5 | B15: 0.02235 | C15: 0.03204708022 | D15: 0.03204708022 | E15: 0.03204708022
A16: 6 | B16: 0.02422 | C16: 0.03362143209 | D16: 0.03362143209 | E16: 0.03362143209
A17: 7 | B17: 0.02649 | C17: 0.04021604314 | D17: 0.04021604314 | E17: 0.04021604314
A18: 8 | B18: 0.0282 | C18: 0.04025002821 | D18: 0.04025002821 | E18: 0.04025002821
A19: 9 | B19: 0.02964 | C19: 0.04123283997 | D19: 0.04123283997 | E19: 0.04123283997
A20: 10 | B20: 0.03125 | C20: 0.04585376035 | D20: 0.04585376035 | E20: 0.04585376035
A21: 11 | B21: 0.03262 | D21: 0.04642050134 | E21: 0.04642050134
A22: 12 | B22: 0.03373 | D22: 0.04601903264 | E22: 0.04601903264
A23: 13 | B23: 0.03464 | D23: 0.04562268634 | E23: 0.04562268634
A24: 14 | B24: 0.0354 | D24: 0.04533095139 | E24: 0.04533095139
A25: 15 | B25: 0.03605 | D25: 0.04519296254 | E25: 0.04519296254
A26: 16 | B26: 0.03661 | D26: 0.04504641435 | E26: 0.04504641435
A27: 17 | B27: 0.0371 | D27: 0.04497157495 | E27: 0.04497157495
A28: 18 | B28: 0.03753 | D28: 0.04486733811 | E28: 0.04486733811
A29: 19 | B29: 0.03791 | D29: =(1+$B29)^$A29/(1+$B28)^$A28-1 -> 0.04477384868 | E29: 0.04477384868
A30: 20 | B30: 0.03825 | D30: 0.04473120341 | E30: 0.04473120341
A31: 21 | B31: 0.03855 | E31: 0.04456823706
A32: 22 | B32: 0.03883 | E32: 0.04472746954
A33: 23 | B33: 0.03907 | E33: 0.0443640508
A34: 24 | B34: 0.0393 | E34: 0.04460407425
A35: 25 | B35: 0.0395 | E35: 0.04431156329
A36: 26 | B36: 0.03968 | E36: 0.04419014392
A37: 27 | B37: 0.03986 | E37: 0.04455095416
A38: 28 | B38: 0.04001 | E38: 0.04406818922
A39: 29 | B39: 0.04016 | E39: 0.04436879498
A40: 30 | B40: 0.04029 | E40: 0.04406707591
A41: 31 | B41: 0.04041
A42: 32 | B42: 0.04053
A43: 33 | B43: 0.04063
A44: 34 | B44: 0.04073
A45: 35 | B45: 0.04083
A46: 36 | B46: 0.04091
A47: 37 | B47: 0.041
A48: 38 | B48: 0.04107
A49: 39 | B49: 0.04114
A50: 40 | B50: 0.04121
A51: 41 | B51: 0.04128
A52: 42 | B52: 0.04134
A53: 43 | B53: 0.04139
A54: 44 | B54: 0.04145
A55: 45 | B55: 0.0415
A56: 46 | B56: 0.04155
A57: 47 | B57: 0.0416
A58: 48 | B58: 0.04164
A59: 49 | B59: 0.04168
A60: 50 | B60: 0.04172
A61: 51 | B61: 0.04176
A62: 52 | B62: 0.0418
A63: 53 | B63: 0.04183
A64: 54 | B64: 0.04187
A65: 55 | B65: 0.0419
A66: 56 | B66: 0.04193
A67: 57 | B67: 0.04196
A68: 58 | B68: 0.04199
A69: 59 | B69: 0.04202
A70: 60 | B70: 0.04204
A71: 61 | B71: 0.04207
A72: 62 | B72: 0.04209
A73: 63 | B73: 0.04212
A74: 64 | B74: 0.04214
A75: 65 | B75: 0.04216
A76: 66 | B76: 0.04218
A77: 67 | B77: 0.0422
A78: 68 | B78: 0.04222
A79: 69 | B79: 0.04224
A80: 70 | B80: 0.04226
A81: 71 | B81: 0.04228
A82: 72 | B82: 0.0423
A83: 73 | B83: 0.04231
A84: 74 | B84: 0.04233
A85: 75 | B85: 0.04235
A86: 76 | B86: 0.04236
A87: 77 | B87: 0.04238
A88: 78 | B88: 0.04239
A89: 79 | B89: 0.04241
A90: 80 | B90: 0.04242
A91: 81 | B91: 0.04243
A92: 82 | B92: 0.04245
A93: 83 | B93: 0.04246
A94: 84 | B94: 0.04247
A95: 85 | B95: 0.04249
A96: 86 | B96: 0.0425
A97: 87 | B97: 0.04251
A98: 88 | B98: 0.04252
A99: 89 | B99: 0.04253
A100: 90 | B100: 0.04254
A101: 91 | B101: 0.04255
A102: 92 | B102: 0.04256
A103: 93 | B103: 0.04257
A104: 94 | B104: 0.04258
A105: 95 | B105: 0.04259
A106: 96 | B106: 0.0426
A107: 97 | B107: 0.04261
A108: 98 | B108: 0.04262
A109: 99 | B109: 0.04263
A110: 100 | B110: 0.04264
A111: 101 | B111: 0.04265
A112: 102 | B112: 0.04266
A113: 103 | B113: 0.04267
A114: 104 | B114: 0.04267
A115: 105 | B115: 0.04268
A116: 106 | B116: 0.04269
A117: 107 | B117: 0.0427
A118: 108 | B118: 0.0427
A119: 109 | B119: 0.04271
A120: 110 | B120: 0.04272
A121: 111 | B121: 0.04273
A122: 112 | B122: 0.04273
A123: 113 | B123: 0.04274
A124: 114 | B124: 0.04275
A125: 115 | B125: 0.04275
A126: 116 | B126: 0.04276
A127: 117 | B127: 0.04277
A128: 118 | B128: 0.04277
A129: 119 | B129: 0.04278
A130: 120 | B130: 0.04278
A131: 121 | B131: 0.04279
A132: 122 | B132: 0.0428
A133: 123 | B133: 0.0428
A134: 124 | B134: 0.04281
A135: 125 | B135: 0.04281
A136: 126 | B136: 0.04282
A137: 127 | B137: 0.04282
A138: 128 | B138: 0.04283
A139: 129 | B139: 0.04283
A140: 130 | B140: 0.04284
A141: 131 | B141: 0.04284
A142: 132 | B142: 0.04285
A143: 133 | B143: 0.04285
A144: 134 | B144: 0.04286
A145: 135 | B145: 0.04286
A146: 136 | B146: 0.04287
A147: 137 | B147: 0.04287
A148: 138 | B148: 0.04288
A149: 139 | B149: 0.04288
A150: 140 | B150: 0.04289
A151: 141 | B151: 0.04289
A152: 142 | B152: 0.0429
A153: 143 | B153: 0.0429
A154: 144 | B154: 0.0429
A155: 145 | B155: 0.04291
A156: 146 | B156: 0.04291
A157: 147 | B157: 0.04292
A158: 148 | B158: 0.04292
A159: 149 | B159: 0.04292
A160: 150 | B160: 0.04293
